Cogmind - Beta 9.6 --- EXPLORER MODE // 2020.05.21 @ 22:50:53 // Winter2019/RPGLIKE Player: hemo Result: Establishing 0b11! Performance ------------- Evolutions (9) 4500 Regions Visited (35) 7000 Robots Destroyed (2003) 10015 Value Destroyed (110832) 110832 Prototype IDs (202) 4040 Alien Tech Used (4) 800 Bonus (147903) 147903 TOTAL SCORE: 285090 Bonus ------- Triggered High Security 1500 High Alert Combat Kills 59831 Follower Combat Kills 2779 Met Data Miner 300 Destroyed Z-Imprinter 1000 Met Zhirov 300 Met Warlord at Base 500 MAIN.C Attacked Warlord 500 Warlord Defense Kill 49692 Found Hidden Lab 3000 Met Warlord at Research 2000 Hacked God Mode 5000 Scanned by Researcher 500 Pursued by Intercept 1000 Destroyed MAIN.C Guards 500 Met MAIN.C 5000 Destroyed MAIN.C Shell 5000 Destroyed MAIN.C 10000 Win 3000 Friendly Fire -3499 Cogmind --------- Core Integrity 600/600 Matter 270/300 Energy 1098/1100 System Corruption 0% Temperature Cool (0) Movement Rolling (120) Ox3 Location 0b11 Command Parts ------- > --- POWER (3) -------- Singularity Reactor > --- PROPULSION (2) --- High-density Centrium Wheel High-density Centrium Wheel > --- UTILITY (14) ----- Experimental Coolant Injector Experimental Signal Interpreter Experimental Terrain Scanner Experimental Target Analyzer Experimental Core Analyzer Precision Energy Filter Advanced Particle Accelerator Quantum Capacitor Heavy Reactive Plating Beam Splitter EM Dispersion Field Advanced Hardlight Generator > --- WEAPON (7) ------- Dispersion Rifle Plasma Storm Enhanced Nova Cannon > --- INVENTORY (7) ---- Experimental Coolant Injector Experimental Energy Well (1000) Experimental Shock Absorption System EMDS Guided Remote Datajack Peak State ------------ > --- POWER ------------ Singularity Reactor > --- PROPULSION ------- High-density Centrium Wheel High-density Centrium Wheel > --- UTILITY ---------- Experimental Coolant Injector Experimental Signal Interpreter Experimental Terrain Scanner Experimental Core Analyzer Advanced Particle Accelerator Quantum Capacitor Heavy Reactive Plating Beam Splitter EM Dispersion Field Advanced Hardlight Generator System Mapper Quantum Router > --- WEAPON ----------- Plasma Storm EMDS > --- INVENTORY -------- Experimental Coolant Injector Experimental Energy Well Precision Energy Filter Experimental Shock Absorption System Improved System Restoration Module Enhanced Nova Cannon Guided Remote Datajack [Rating: 224] Favorites ----------- Power Cooled Deuterium Engine Engine Cooled Deuterium Engine Power Core Light Nuclear Core Reactor Vortex Chain Reactor Propulsion Compact Wheel Leg Enhanced Biometal Leg Wheel Compact Wheel Hover Unit Zionite Glidesys I Flight Unit Improved Diametric Drive Utility Heavy Reactive Plating Device Experimental Sensor Array Storage High-capacity Battery Processor Advanced Signal Interpreter Hackware System Mapper Protection Heavy Reactive Plating Weapon Improved Spread Laser Energy Gun Improved Spread Laser Energy Cannon Matter Neutralizer Ballistic Gun Enhanced Autogun Ballistic Cannon Compact Linear Accelerator Launcher Heavy Missile Launcher Special Weapon Remote Datajack Impact Weapon Heavy Hammer Slashing Weapon Great Axe Piercing Weapon Plasma Lance Build | -11 -10 -10 -9 -9 -8 -8 -7 -7 -7 -7 -7 -7 -6 -6 -6 -6 -6 -6 -5 -5 -5 -5 -5 -4 -4 -4 -4 -4 -3 -3 -3 -3 -2 -1 -1 ------- Run | Scr Mat Min Mat Min Mat Sto Fac Was Fac Low Low Dat Pro Fac Low Low Zio Dee Pro Fac Upp Upp War Pro Fac Upp Upp Zhi Pro Res Arm Lab Res Acc Com Slots Evolved 21 | 4 2 1 1 1 5 . 1 . 1 . . . . 1 . . . . . . . . 2 . . . . . . . 1 . 1 . . Power 2 | . . . . . 1 . . . . . . . . . . . . . . . . . . . . . . . . . . . 1 . . Propulsion 1 | . . . . . . . . . 1 . . . . . . . . . . . . . . . . . . . . . . . . . . Utility 13 | 2 1 1 1 . 4 . 1 . . . . . . 1 . . . . . . . . 1 . . . . . . . 1 . . . . Weapon 5 | 2 1 . . 1 . . . . . . . . . . . . . . . . . . 1 . . . . . . . . . . . . Parts Attached 329 | 10 9 5 11 1 20 13 32 3 14 1 1 . 2 16 . 1 2 18 4 14 . . 34 2 15 . 1 1 2 13 9 14 8 14 39 Power 22 | 1 1 . . . 2 3 4 . . . . . . . . . . 2 . . . . 3 . . . . . . . . 2 1 3 . Engine 9 | 1 . . . . 1 2 4 . . . . . . . . . . 1 . . . . . . . . . . . . . . . . . Core 3 | . 1 . . . 1 1 . . . . . . . . . . . . . . . . . . . . . . . . . . . . . Reactor 10 | . . . . . . . . . . . . . . . . . . 1 . . . . 3 . . . . . . . . 2 1 3 . Propulsion 19 | 3 1 1 . . 1 . 1 . 1 . . . . . . . . 2 . . . . 5 . 2 . . . . . 2 . . . . Treads . | . . . . . . . . . . . . . . . . . . . . . . . . . . . . . . . . . . . . Leg 1 | . . . . . . . . . . . . . . . . . . . . . . . 1 . . . . . . . . . . . . Wheel 15 | 3 1 1 . . 1 . 1 . 1 . . . . . . . . 1 . . . . 2 . 2 . . . . . 2 . . . . Hover 2 | . . . . . . . . . . . . . . . . . . 1 . . . . 1 . . . . . . . . . . . . Flight 1 | . . . . . . . . . . . . . . . . . . . . . . . 1 . . . . . . . . . . . . Utility 159 | 3 4 3 6 . 13 1 18 2 5 1 . . 2 7 . . . 7 4 7 . . 13 1 9 . 1 1 2 13 7 4 4 6 15 Device 117 | 1 2 3 4 . 7 . 11 1 3 1 . . 1 4 . . . 4 4 5 . . 9 1 8 . 1 1 2 12 7 2 4 6 13 Storage 9 | . 1 . 2 . . . 1 . 1 . . . 1 1 . . . 1 . . . . . . . . . . . 1 . . . . . Processor 8 | 1 . . . . 2 . . . . . . . . . . . . . . 1 . . 2 . 1 . . . . . . . . . 1 Hackware 17 | . . . . . 4 1 5 . 1 . . . . 2 . . . . . 1 . . 1 . . . . . . . . 1 . . 1 Protection 8 | 1 1 . . . . . 1 1 . . . . . . . . . 2 . . . . 1 . . . . . . . . 1 . . . Artifact . | . . . . . . . . . . . . . . . . . . . . . . . . . . . . . . . . . . . . Weapon 129 | 3 3 1 5 1 4 9 9 1 8 . 1 . . 9 . 1 2 7 . 7 . . 13 1 4 . . . . . . 8 3 5 24 Energy Gun 38 | 1 1 1 4 . 3 1 4 . . . . . . 5 . . 1 5 . 3 . . 3 . . . . . . . . 3 1 . 2 Energy Cannon 23 | . . . . . . . . . . . . . . . . . . . . . . . . 1 2 . . . . . . 2 1 3 14 Ballistic Gun 17 | 2 2 . . 1 . 7 . . 3 . . . . . . . . . . . . . 1 . . . . . . . . . . . 1 Ballistic Cannon 1 | . . . . . . . . . . . . . . . . . . . . . . . 1 . . . . . . . . . . . . Launcher 4 | . . . . . . . 1 1 . . . . . . . . . . . . . . . . . . . . . . . . . . 2 Special Weapon 19 | . . . . . . . 2 . 2 . . . . . . . . . . 1 . . 1 . 2 . . . . . . 3 1 2 5 Impact Weapon 1 | . . . 1 . . . . . . . . . . . . . . . . . . . . . . . . . . . . . . . . Slashing Weapon 24 | . . . . . 1 1 2 . 3 . 1 . . 4 . 1 1 2 . 3 . . 5 . . . . . . . . . . . . Piercing Weapon 2 | . . . . . . . . . . . . . . . . . . . . . . . 2 . . . . . . . . . . . . Special Melee Weapon . | . . . . . . . . . . . . . . . . . . . . . . . . . . . . . . . . . . . . Unidentified Prototypes 42 | . . 1 . . . 1 . . . . . . 1 . . . . 7 . . . . 18 . . . 1 2 . 1 1 6 . . 3 Parts Lost 6 | . . . . . 1 . 1 . . . . . . . . . . . . . . . . . 1 . . . . . . . . 1 2 Power . | . . . . . . . . . . . . . . . . . . . . . . . . . . . . . . . . . . . . Propulsion . | . . . . . . . . . . . . . . . . . . . . . . . . . . . . . . . . . . . . Utility 5 | . . . . . 1 . 1 . . . . . . . . . . . . . . . . . 1 . . . . . . . . 1 1 Weapon 1 | . . . . . . . . . . . . . . . . . . . . . . . . . . . . . . . . . . . 1 Highest Loss Streak 1 | . . . . . 1 . 1 . . . . . . . . . . . . . . . . . 1 . . . . . . . . 1 1 Average Slot Usage (%) 79 | . 99 99 100 100 99 99 94 85 84 85 85 85 85 84 85 85 85 84 84 85 85 85 66 65 60 60 60 58 59 61 68 69 72 71 66 Engine 5 | . 7 . . . 6 9 10 10 10 10 10 10 10 9 9 9 9 8 9 9 9 9 1 . . . . . . . . . . . . Reactor 1 | . . . . . . . . . . . . . . . . . . . . . . . 3 4 4 4 4 4 4 4 4 4 6 6 3 Wheel 8 | . 11 9 8 7 6 5 5 5 9 10 10 10 10 9 9 9 9 8 9 9 9 9 8 8 8 8 8 8 8 8 8 8 7 7 7 Device 23 | . 18 32 33 30 29 27 25 26 24 25 25 25 25 22 19 19 19 18 18 19 19 19 17 17 16 17 17 15 16 19 30 31 26 26 29 Processor 6 | . 11 9 8 7 6 5 5 5 5 5 5 5 5 4 4 4 4 4 4 4 4 4 6 8 8 8 8 8 8 8 8 8 7 7 8 Hackware 5 | . . . . . 2 19 16 1 . . . . . 3 9 9 9 9 9 9 9 9 8 8 4 4 4 4 4 4 4 4 7 6 2 Protection 6 | . 7 . . . . . 4 9 10 10 10 10 10 9 9 9 9 9 9 9 9 9 8 8 8 8 8 8 8 7 4 4 3 3 3 Energy Gun 14 | . 11 11 30 30 26 18 18 21 20 20 20 20 20 23 23 20 21 22 23 22 23 23 5 4 4 4 4 4 4 4 4 4 6 5 3 Energy Cannon 1 | . . . . . . . . . . . . . . . . . . . . . . . . 3 3 4 4 4 4 4 4 2 3 3 2 Ballistic Gun 1 | . 25 27 . 7 6 7 3 . 2 . . . . . . . . . . . . . . . . . . . . . . . . . . Naked Turns . | . . . . . . . . . . . . . . . . . . . . . . . . . . . . . . . . . . . . Heaviest Build 166 | 9 15 19 27 29 36 44 87 135 131 130 131 131 131 132 129 129 129 129 129 129 129 129 154 157 162 162 162 162 162 166 133 133 154 160 162 Greatest Support 40 | 10 10 10 10 10 10 10 16 16 32 32 32 32 32 32 32 32 32 32 32 32 32 32 32 32 32 32 32 32 32 32 40 40 40 40 40 Greatest Overweight (x) 9 | 1 1 1 2 2 3 4 8 8 8 4 4 4 4 4 4 4 4 8 4 4 4 4 9 4 5 5 5 5 5 5 3 3 3 3 4 Average Overweight (x) 3 | . . 1 1 2 2 3 5 7 4 4 4 4 4 3 4 4 4 3 3 3 4 4 4 4 4 5 5 5 5 4 2 2 3 3 3 Largest Inventory Capacity 7 | . 3 3 3 3 3 4 5 5 5 5 5 5 5 5 5 5 5 5 5 6 6 6 6 6 7 7 7 7 7 7 7 7 7 7 7 Average Capacity 5 | . 1 3 3 3 3 3 4 5 5 5 5 5 5 5 5 5 5 5 5 5 6 6 6 6 6 7 7 7 7 7 7 7 7 7 7 Most Carried 7 | . 3 3 3 3 3 4 5 5 5 5 5 5 5 5 5 5 5 5 5 6 6 6 6 6 7 7 7 7 7 7 7 7 7 7 7 Average Carried 5 | . 1 3 2 3 2 3 4 5 4 5 5 5 4 4 5 5 4 4 4 5 6 6 6 5 6 7 7 7 7 6 6 6 6 6 6 Final Capacity 7 | . 3 3 3 3 3 4 5 5 5 5 5 5 5 5 5 5 5 5 5 6 6 6 6 6 7 7 7 7 7 7 7 7 7 7 7 Final Carried 7 | . 3 3 3 3 3 4 5 5 5 5 5 5 5 5 5 5 5 5 5 6 6 6 6 5 7 7 7 7 7 6 7 7 7 7 6 Class Distribution -------------------- 27% | Hacker-Skirmisher 22% | Hacker-Mutant 8% | Hacker-Assassin 6% | Hacker-Gunner 6% | Scavenger-Skirmisher 5% | Wizard-Executioner 4% | Wizard-Skirmisher 4% | Wizard-Mutant Dominant Class ---------------- Hacker-Gunner | -10/Materials Hacker-Skirmisher | -10/Mines Scavenger-Skirmisher | -9/Materials Scavenger-Skirmisher | -9/Mines Scavenger-Skirmisher | -8/Materials Wizard-Skirmisher | -8/Storage Hacker-Skirmisher | -7/Factory Hacker-Skirmisher | -7/Waste Hacker-Skirmisher | -7/Factory Hacker-Skirmisher | -7/Lower Caves Hacker-Skirmisher | -7/Lower Caves Hacker-Assassin | -7/Data Miner Commander-Assassin | -6/Proximity Caves Commander-Skirmisher | -6/Factory Hacker-Skirmisher | -6/Lower Caves Hacker-Assassin | -6/Lower Caves Hacker-Mutant | -6/Zion Hacker-Gunner | -6/Deep Caves Hacker-Gunner | -5/Proximity Caves Hacker-Skirmisher | -5/Factory Hacker-Skirmisher | -5/Upper Caves Hacker-Skirmisher | -5/Upper Caves Wizard-Executioner | -5/Warlord Wizard-Mutant | -4/Proximity Caves Hacker-Mutant | -4/Factory Hacker-Mutant | -4/Upper Caves Hacker-Mutant | -4/Upper Caves Hacker-Mutant | -4/Zhirov Hacker-Mutant | -3/Proximity Caves Hacker-Mutant | -3/Research Hacker-Mutant | -3/Armory Hacker-Mutant | -3/Lab Wizard-Mutant | -2/Research Wizard-Mutant | -1/Access Machinist-Mutant | -1/Command Resources | -11 -10 -10 -9 -9 -8 -8 -7 -7 -7 -7 -7 -7 -6 -6 -6 -6 -6 -6 -5 -5 -5 -5 -5 -4 -4 -4 -4 -4 -3 -3 -3 -3 -2 -1 -1 ----------- Run | Scr Mat Min Mat Min Mat Sto Fac Was Fac Low Low Dat Pro Fac Low Low Zio Dee Pro Fac Upp Upp War Pro Fac Upp Upp Zhi Pro Res Arm Lab Res Acc Com Matter Collected 9628 | 299 227 336 150 60 705 140 757 90 514 10 . . 30 160 . 10 20 180 40 140 . . 375 20 156 . 20 . 50 130 90 . 321 372 4226 Remotely . | . . . . . . . . . . . . . . . . . . . . . . . . . . . . . . . . . . . . Salvage Created 95256 | 151 515 635 1720 160 3209 973 3746 1431 1889 100 321 . 733 1647 229 145 77 517 1010 3223 223 244 20595 1570 4467 137 159 . 655 7454 4528 . 1047 3464 28282 Parts 3733 | 9 47 26 86 22 171 64 172 4 101 5 18 . 26 76 4 6 . 41 42 132 12 4 903 51 181 . 12 . 25 290 193 2 38 163 807 Haulers Intercepted 41 | . 2 . 6 . 6 6 6 . 1 . . . . 4 . . . . . 3 . . . . 2 . . . . 3 . . . 2 . Recyclers Shooed 9 | 1 1 2 . . . . . . . . . . . . . . . . . 1 . . . . 2 . . . . 2 . . . . . Parts Field Recycled . | . . . . . . . . . . . . . . . . . . . . . . . . . . . . . . . . . . . . Retrieved Matter . | . . . . . . . . . . . . . . . . . . . . . . . . . . . . . . . . . . . . Parts Self-Destructed . | . . . . . . . . . . . . . . . . . . . . . . . . . . . . . . . . . . . . Prevented . | . . . . . . . . . . . . . . . . . . . . . . . . . . . . . . . . . . . . Kills | -11 -10 -10 -9 -9 -8 -8 -7 -7 -7 -7 -7 -7 -6 -6 -6 -6 -6 -6 -5 -5 -5 -5 -5 -4 -4 -4 -4 -4 -3 -3 -3 -3 -2 -1 -1 ------- Run | Scr Mat Min Mat Min Mat Sto Fac Was Fac Low Low Dat Pro Fac Low Low Zio Dee Pro Fac Upp Upp War Pro Fac Upp Upp Zhi Pro Res Arm Lab Res Acc Com Combat Hostiles Destroyed 1761 | . 16 25 31 8 73 12 82 6 51 4 13 . 17 32 4 4 . 15 27 62 8 4 418 27 81 5 8 . 10 118 104 2 16 53 425 Melee 2 | . . . . . . . . . . . . . . . . . . . . . . . 1 . . . . . . . 1 . . . . Guns 504 | . 16 25 26 8 57 12 77 3 51 4 13 . 17 32 4 4 . 15 27 60 8 4 21 . 4 . . . . 4 1 . 1 . 10 Cannons 392 | . . . . . . . . . . . . . . . . . . . . . . . . 5 54 5 3 . 2 54 78 1 11 35 144 AOE 652 | . . . 5 . 16 . 5 3 . . . . . . . . . . . 2 . . 347 20 20 . 5 . 7 47 14 . 4 8 149 Classes Destroyed 29 | 2 5 1 1 . 4 2 3 1 . . . . . . . . . 1 1 . . . 7 . . . . . . . . . . . 1 Worker 33 | . . . . . 2 2 4 . 3 . . . . . . . . . . 1 . . . . 6 . . . . 8 . . 5 . 2 Builder 35 | . 1 . 2 . . . . . 1 . . . . 2 . . . . . 2 . . . . 1 . . . . 22 . . 2 2 . Tunneler 9 | 4 . 2 . 1 . . . . . . . . . . . . . . . . . . . . 2 . . . . . . . . . . Hauler 41 | . 2 . 6 . 6 6 6 . 1 . . . . 4 . . . . . 3 . . . . 2 . . . . 3 . . . 2 . Recycler 25 | 1 . 3 2 . 2 . 5 . 1 . . . . 1 . . . . . 2 . . . . 3 . . . . 1 . . 1 2 1 Carrier 6 | . . . . . 1 . 1 . . . . . . . . . . . . . . . . . . . . . . . . . . . 4 Mechanic 22 | . . . . . . . . . . . . . . . . . . . . . . . 6 . . . . . . 6 1 . . 1 8 Operator 5 | . . . . . . 1 2 . . . . . . . . . . . . 1 . . . . . . . . . 1 . . . . . Drone 1 | . . . . . . . 1 . . . . . . . . . . . . . . . . . . . . . . . . . . . . Watcher 51 | . 3 . 5 . 4 2 5 . 3 . . . . 2 . . . . . 5 . . . . 7 . . . . 6 1 . . 1 7 Swarmer 187 | . 4 3 6 . 13 . 4 . 2 . 7 . 2 3 . . . . . 11 6 . 36 4 13 . 6 . 3 4 6 . 3 3 48 Saboteur 72 | . . . . . . . . . . . . . . . . . . . . . . . 38 1 . . . . . . 2 . . . 31 Grunt 653 | . 12 6 17 6 45 3 52 . 28 4 5 . 5 17 2 3 1 . 16 23 . . 153 5 22 3 . . 4 59 35 1 4 15 107 Brawler 89 | . . . . . . 1 . . . . . . 3 1 . . . . 5 3 . 1 29 1 1 . . . . 8 8 . . . 28 Duelist 81 | . . . . . 1 . 4 . 1 . . . 3 . . . . . 2 1 . 1 16 6 1 . . . . 3 7 . . 1 34 Protector 50 | . . . . . . . 3 . . . . . . . . . . . . . . . 19 . . . . . . 1 4 . . 1 22 Sentry 113 | . . . 8 2 11 8 8 . 8 . 1 . 2 7 1 . . . 2 12 . 1 . 3 8 1 1 . . 5 11 . 1 5 7 Demolisher 19 | . . . . . . . . . . . . . . . . . . . . . . . 5 . . . . . . . 1 . 1 . 12 Specialist 25 | . . . . . . . . . . . . . . . . . . . . . . . 7 . . . . . . 1 6 . . . 11 Hunter 138 | . . . . . 3 . 6 . 4 . . . 1 1 1 . . . 1 4 . . 26 2 10 . . . 3 20 3 . 2 6 45 Programmer 187 | . . . . . . . 7 . 8 . . . 1 3 . 1 . . . 8 2 . 32 4 24 . 1 . . 15 21 . . 7 53 Behemoth 21 | . . . . . . . . . . . . . . . . . . . 1 . . 1 11 1 2 . . . . 1 . . . 2 2 Compactor 6 | . . . . . . . . 6 . . . . . . . . . . . . . . . . . . . . . . . . . . . M Guard 2 | . . . . . . . . . . . . . . . . . . . . . . . . . . . . . . . . . . . 2 Tracker 10 | . . . . . . . . . . . . . . . . . . . . . . . . . . . . . . . . . 2 8 . Combat Programmer 9 | . . . . . . . . . . . . . . . . . . . . . . . . . . . . . . . . . 2 5 2 Investigator 1 | . . . . . . . . . . . . . . . . . . . . . . . . . . . . . . . . . . . 1 Striker 40 | . . . . . . . . . . . . . . . . . . . . . . . 28 . . . . . . . . . 1 . 11 Executioner 25 | . . . . . . . . . . . . . . . . . . . . . . . 18 . . . . . . . . . . . 7 Z-Technician 5 | . . . . . . . . . . . . . . . . . . 5 . . . . . . . . . . . . . . . . . Z-Light 11 | . . . . . . . . . . . . . . . . . . 11 . . . . . . . . . . . . . . . . . Assembled 19 | . . 16 . . . . . . . . . . . . . . . 3 . . . . . . . . . . . . . . . . . Thug 4 | . . . . . . . . . . . . . . . . . . . . . . . . . 3 . . . . . . . . . 1 Savage 1 | . . . . . . . . . . . . . . . . . . . . . . . . . . . . . . 1 . . . . . Butcher 1 | . . . . . . . . . . . . . . . . . . . . . . . . . . . . . . 1 . . . . . Mutant 2 | . . . . . . . . . . . . . . . . . . . . . . . 1 . . 1 . . . . . . . . . Best Kill Streak 142 | 3 3 15 8 3 8 3 7 2 5 2 7 . 4 5 3 3 . 6 7 8 3 3 21 15 7 3 3 . 7 24 14 1 8 8 142 Combat Bots Only 138 | . 3 10 4 2 8 3 7 2 5 2 7 . 4 5 3 3 . 6 7 8 3 3 21 15 6 3 3 . 7 14 14 1 6 7 138 Max Kills in Single Turn 13 | 1 2 2 4 2 4 2 3 1 2 1 2 . 2 2 1 2 1 2 2 3 2 1 8 3 6 1 3 . 3 6 5 1 3 4 13 Gunslinging 2 | . 1 1 1 1 1 1 2 . 1 . 1 . 1 1 . 1 . 1 1 2 1 . . . . . . . . . . . . . . Exploded 12 | . . . 1 . 3 . 2 1 . . . . . . . . . . . 2 . . 8 3 3 . 3 . 3 3 5 . 2 2 12 Melee 1 | . . . . . . . . . . . . . . . . . . . . . . . 1 . . . . . . . 1 . . . . Uniques/NPCs Destroyed 3 | . . . . . . . . . . . . . . . . . . 1 . . . . . . . . . . . . . 1 . . 1 Z-Imprinter (-6/Deep Caves) A5 (-3/Lab) MAIN.C Shell (-1/Command) MAIN.C (-1/Command) Combat | -11 -10 -10 -9 -9 -8 -8 -7 -7 -7 -7 -7 -7 -6 -6 -6 -6 -6 -6 -5 -5 -5 -5 -5 -4 -4 -4 -4 -4 -3 -3 -3 -3 -2 -1 -1 -------- Run | Scr Mat Min Mat Min Mat Sto Fac Was Fac Low Low Dat Pro Fac Low Low Zio Dee Pro Fac Upp Upp War Pro Fac Upp Upp Zhi Pro Res Arm Lab Res Acc Com Damage Taken 23435 | . 212 542 488 48 1486 126 1505 32 953 127 231 . 377 367 138 75 . 1164 811 919 49 125 6109 563 1474 18 93 . 246 2070 198 . 680 76 2133 Core 13335 | . 168 427 391 35 1154 99 861 21 470 67 127 . 182 183 56 32 . 618 421 453 23 66 3151 257 770 7 51 . 129 1047 126 . 461 49 1433 Absorbed by Shields 9774 | . . . . . . . . . . . . . . . . . . . . . . . . . . . . . . . 227 . 266 1136 8145 Redirected to Core 12050 | . 108 320 308 35 1077 79 787 21 454 58 101 . 158 144 49 32 . 596 381 399 23 44 2872 241 730 7 47 . 129 1000 113 . 373 42 1322 Core Remaining (%) 93 | 100 . 100 . 100 . 100 . . . . . . 100 . . . . . 100 . . . . 100 . . . . 87 . . 94 44 . 100 Volleys Fired 3011 | 14 52 62 60 10 108 30 129 15 102 7 16 . 28 47 6 8 . 19 32 91 12 6 191 32 212 19 9 . 11 312 266 25 69 182 829 Largest 5 | 3 4 4 4 5 5 5 5 5 5 4 4 . 4 5 5 5 . 5 5 5 5 5 1 2 2 1 1 . 1 1 1 1 2 1 2 Hottest 420 | 90 110 165 210 234 234 235 300 339 325 300 300 . 300 375 375 375 . 375 375 375 375 375 300 405 405 105 300 . 300 300 300 105 300 300 420 Shots Fired 5655 | 22 162 248 218 38 433 106 539 52 386 28 61 . 112 220 30 40 . 95 159 442 60 30 191 34 214 19 9 . 11 312 266 25 68 182 843 Gun 4021 | 22 162 248 218 38 433 106 538 44 384 28 61 . 112 220 30 40 . 95 159 442 60 30 186 20 38 . 2 . 5 49 17 . 6 15 213 Cannon 1598 | . . . . . . . . . . . . . . . . . . . . . . . . 14 175 19 7 . 6 263 249 22 56 162 625 Launcher 9 | . . . . . . . . 8 . . . . . . . . . . . . . . . . . . . . . . . . . . 1 Special 27 | . . . . . . . 1 . 2 . . . . . . . . . . . . . 5 . 1 . . . . . . 3 6 5 4 Kinetic 635 | 8 112 178 12 10 101 20 124 . 69 . . . . . . . . . . . . . . . . . . . . . . . . . 1 Thermal 4138 | 14 50 70 56 10 105 29 414 44 315 28 61 . 112 220 30 40 . 95 159 442 60 30 186 34 213 19 9 . 11 312 266 22 60 158 464 Explosive 8 | . . . . . . . . 8 . . . . . . . . . . . . . . . . . . . . . . . . . . . Electromagnetic 846 | . . . 150 18 227 57 . . . . . . . . . . . . . . . . . . . . . . . . . . 2 19 373 Robot Hit Streak 147 | 8 27 23 49 39 59 22 102 108 77 37 45 . 50 76 27 29 . 25 70 65 15 61 58 59 41 25 31 . 20 47 64 35 40 97 147 Robot Miss Streak 11 | 1 1 3 2 1 4 1 6 2 5 2 3 . 5 5 2 2 . 7 3 11 6 3 5 2 3 . 1 . 1 4 2 . 2 5 6 Penetration Max 1 | . . . . . . . . . . . . . . . . . . . . . . . . . . . . . . . . . . 1 1 Secondary Targets 102 | . 2 10 4 3 14 1 12 . 11 1 6 . 3 6 . 1 . 6 10 9 2 1 . . . . . . . . . . . . . Max Gunslinging Chain 2 | . 1 1 1 1 1 1 2 . 2 1 2 . 2 2 . 1 . 1 1 2 1 1 . . . . . . . . . . . . . Capacitor 1879 | . . . . . . . . . . . . . . . . . . . . . . . . . 202 19 9 . 11 308 265 19 60 177 809 Shots Hit Robots 4610 | 14 117 132 161 25 323 52 404 47 323 21 59 . 103 164 22 34 2 93 137 339 48 28 191 32 191 18 7 . 10 281 233 21 53 160 765 Core Hits 5973 | 8 41 60 79 17 217 38 421 40 233 27 52 . 128 216 21 24 1 98 173 405 26 35 1221 80 220 11 12 . 32 428 225 6 54 112 1212 Critical Hits 176 | . . 1 1 . 2 2 . . 1 . . . . . . . . . . . . . . 1 10 . . . . 19 11 1 3 9 115 Critical Kills 44 | . . 1 1 . 1 2 . . . . . . . . . . . . . . . . . . 1 . . . . 4 6 . 1 . 27 Critical Parts Destroyed 83 | . . . . . 1 . . . 1 . . . . . . . . . . . . . . 1 9 . . . . 12 3 1 1 6 48 Melee Attacks 66 | . . . 12 . 1 2 1 . 12 . 1 . . 8 . 1 13 7 . 2 . . 6 . . . . . . . . . . . . Impact 12 | . . . 12 . . . . . . . . . . . . . . . . . . . . . . . . . . . . . . . . Slashing 53 | . . . . . 1 2 1 . 12 . 1 . . 8 . 1 13 7 . 2 . . 5 . . . . . . . . . . . . Piercing 1 | . . . . . . . . . . . . . . . . . . . . . . . 1 . . . . . . . . . . . . Sneak Attacks 10 | . . . . . . . . . 1 . . . . 1 . . 2 6 . . . . . . . . . . . . . . . . . Combat Hostiles . | . . . . . . . . . . . . . . . . . . . . . . . . . . . . . . . . . . . . Follow-up Attacks . | . . . . . . . . . . . . . . . . . . . . . . . . . . . . . . . . . . . . Damage Inflicted 302313 | 186 1160 1341 3653 594 7883 1056 10230 2425 6186 637 989 . 2377 5005 482 492 287 2797 3723 9221 551 1083 69676 4355 14603 1038 704 . 1315 30674 20926 935 4377 14646 76706 Guns 68009 | 186 1160 1341 2852 594 5981 1019 8882 1697 6006 637 989 . 2377 4760 482 492 . 1777 3660 8650 551 1083 3972 233 325 . 16 . 91 929 530 . 106 431 6200 Cannons 93857 | . . . . . . . . . . . . . . . . . . . . . . . . 768 7836 1038 374 . 284 14374 15352 935 3192 11366 38338 Explosions 138579 | . . . 747 . 1902 37 1348 728 . . . . . . . . . . 63 571 . . 65653 3354 6429 . 314 . 940 15371 5044 . 1079 2831 32168 Melee 1837 | . . . 54 . . . . . 180 . . . . 245 . . 287 1020 . . . . 51 . . . . . . . . . . . . Ramming 31 | . . . . . . . . . . . . . . . . . . . . . . . . . 13 . . . . . . . . 18 . Kinetic 4772 | 46 608 724 52 190 1189 61 1322 . 559 . . . . . . . . . . . . . . . . . . . . . . . . . 21 Thermal 252801 | 140 552 617 1645 158 2792 165 7962 1697 5447 637 989 . 2377 4760 482 492 . 1777 3660 8896 551 1083 69625 4355 14174 1038 704 . 1315 30674 20926 935 4332 13336 44508 Explosive 2669 | . . . . . 254 . 946 728 . . . . . . . . . . . 325 . . . . 416 . . . . . . . . . . Electromagnetic 40203 | . . . 1902 246 3648 830 . . . . . . . . . . . . 63 . . . . . . . . . . . . . 45 1292 32177 Impact 54 | . . . 54 . . . . . . . . . . . . . . . . . . . . . . . . . . . . . . . . Slashing 1732 | . . . . . . . . . 180 . . . . 245 . . 287 1020 . . . . . . . . . . . . . . . . . Piercing 51 | . . . . . . . . . . . . . . . . . . . . . . . 51 . . . . . . . . . . . . Highest Corruption 50 | . 1 1 . . . 1 1 5 4 2 2 2 2 1 1 1 1 . . . . . . . 1 . . . . 1 . . 50 2 . Average Corruption 2 | . 1 1 . . . 1 1 4 1 2 2 2 2 1 1 1 1 . . . . . . . 1 . . . . 1 . . 47 1 . Corruption Purged 13 | . . . . . . . 1 1 4 . . . . . . . . . . . . . . . 1 . . . . 1 . . 3 2 . Effects 139 | . 3 2 . . . 5 2 8 21 7 9 4 6 3 6 3 . . . . . . . . 7 . . . . 2 . . 47 4 . Message Errors 35 | . 2 1 . . . 2 1 2 5 4 3 1 2 . 3 . . . . . . . . . 3 . . . . 1 . . 5 . . Matter Fused 12 | . . . . . . . . 4 1 . . . . . . . . . . . . . . . . . . . . . . . 7 . . Heat Flow Errors 11 | . . . . . . . . . 5 . . . 2 . . . . . . . . . . . . . . . . . . . 3 1 . Energy Discharges 15 | . . . . . . 2 . . 2 2 . 1 1 . 2 1 . . . . . . . . 2 . . . . . . . 2 . . Data Loss (minor) 21 | . . . . . . 1 1 1 3 1 2 2 . 2 1 1 . . . . . . . . 2 . . . . 1 . . 2 1 . Misdirections 8 | . . . . . . . . . . . . . . . . . . . . . . . . . . . . . . . . . 8 . . Targeting Errors 30 | . . 1 . . . . . 1 4 . 1 . 1 1 . 1 . . . . . . . . . . . . . . . . 18 2 . Weapon Failures 7 | . 1 . . . . . . . 1 . 3 . . . . . . . . . . . . . . . . . . . . . 2 . . Overload Shots 4 | . . . . . . . . . . . . . . 4 . . . . . . . . . . . . . . . . . . . . . Effects 1 | . . . . . . . . . . . . . . 1 . . . . . . . . . . . . . . . . . . . . . Energy Bleed 1 | . . . . . . . . . . . . . . 1 . . . . . . . . . . . . . . . . . . . . . Overflow Damage 8440 | . . . 12 . 17 . 170 . 86 . . . . 140 . . 38 251 . 94 . . 881 10 396 71 38 . . 1503 656 . 238 1168 2671 Projectiles 5905 | . . . . . . . . . . . . . . . . . . . . . . . . . 350 71 30 . . 1081 580 . 222 1141 2430 Explosions 2020 | . . . 12 . 17 . 170 . . . . . . . . . . . . 94 . . 881 10 46 . 8 . . 422 76 . 16 27 241 Melee 515 | . . . . . . . . . 86 . . . . 140 . . 38 251 . . . . . . . . . . . . . . . . . Knockbacks 1 | . . . 1 . . . . . . . . . . . . . . . . . . . . . . . . . . . . . . . . Impact 1 | . . . 1 . . . . . . . . . . . . . . . . . . . . . . . . . . . . . . . . Kinetic . | . . . . . . . . . . . . . . . . . . . . . . . . . . . . . . . . . . . . Secondary . | . . . . . . . . . . . . . . . . . . . . . . . . . . . . . . . . . . . . Self-Inflicted Damage 2949 | . . . 158 . 279 17 364 19 . . . . . . . . . . . 129 . . 994 118 444 . 49 . 92 277 . . . 9 . Shots 140 | . . . 7 . 10 1 7 1 . . . . . . . . . . . 2 . . 60 7 20 . 3 . 5 17 . . . . . Rammed 2 | . . . . . . . . . . . . . . . . . . . . . . . . . 1 . . . . . . . . 1 . Targets Rammed 2 | . . . . . . . . . . . . . . . . . . . . . . . . . 1 . . . . . . . . 1 . Kicked . | . . . . . . . . . . . . . . . . . . . . . . . . . . . . . . . . . . . . Crushed . | . . . . . . . . . . . . . . . . . . . . . . . . . . . . . . . . . . . . Highest Temperature 636 | 52 91 198 198 188 215 90 370 329 314 199 199 . 196 195 199 202 . 228 636 198 198 196 199 196 391 177 186 . 293 361 195 160 196 220 240 Average Temperature 106 | 23 28 78 91 82 100 40 124 148 116 135 105 . 102 104 129 125 . 143 151 113 111 126 120 98 97 99 82 . 135 109 92 106 105 102 128 Received Heat Transfer 8262 | . 168 657 186 42 648 63 810 . 717 108 126 . 216 216 81 48 . 540 438 441 . 45 1728 147 249 . 9 . 21 558 . . . . . Effects 17 | . . . . . . . . . 3 . . . . . . . . . 8 . . . . . 1 . . . 1 4 . . . . . Shutdowns 1 | . . . . . . . . . . . . . . . . . . . 1 . . . . . . . . . . . . . . . . Energy Bleed 5 | . . . . . . . . . . . . . . . . . . . 2 . . . . . 1 . . . 1 1 . . . . . Interference 7 | . . . . . . . . . 3 . . . . . . . . . 1 . . . . . . . . . . 3 . . . . . Damage (minor) 1 | . . . . . . . . . . . . . . . . . . . 1 . . . . . . . . . . . . . . . . Damage (major) 3 | . . . . . . . . . . . . . . . . . . . 3 . . . . . . . . . . . . . . . . Siege Activations . | . . . . . . . . . . . . . . . . . . . . . . . . . . . . . . . . . . . . Robots Corrupted 121 | . . . . . . . . . . . . . . . . . . . . . . . . . . . . . . . . . . 8 113 Combat Hostiles 115 | . . . . . . . . . . . . . . . . . . . . . . . . . . . . . . . . . . 7 108 Parts Fried 342 | . . . 8 1 11 5 . . 3 . . . . . . . . . . . . . 1 . . . . . . 2 . . . 19 292 Impact Corruptions . | . . . . . . . . . . . . . . . . . . . . . . . . . . . . . . . . . . . . Robots Melted 96 | . . . . . . . . . . . . . . . . . . . . . . . 49 2 3 . . . 1 13 10 1 . 3 14 Combat Hostiles 96 | . . . . . . . . . . . . . . . . . . . . . . . 49 2 3 . . . 1 13 10 1 . 3 14 Parts Melted 595 | 2 3 1 1 . 3 1 3 . 3 . . . 1 4 3 . . 1 1 2 . . 245 13 28 . 2 . 7 62 28 . 7 23 151 Heat Transferred 250677 | 407 1517 1628 2567 259 3437 235 5143 1105 3405 415 645 . 1432 3029 305 290 . 893 2290 5385 315 680 87544 5566 13737 629 645 . 1701 28703 15346 589 2936 8728 49171 Parts Sabotaged 2 | . . . . . . . . . . . . . . . . . . . . . . . 2 . . . . . . . . . . . . Parts Stolen . | . . . . . . . . . . . . . . . . . . . . . . . . . . . . . . . . . . . . Parts Stripped . | . . . . . . . . . . . . . . . . . . . . . . . . . . . . . . . . . . . . Power Chain Reactions 31 | . . . 11 . 16 1 . . . . . . . . . . . . . . . . . . . . . . . . . . . . 3 Missiles Intercepted . | . . . . . . . . . . . . . . . . . . . . . . . . . . . . . . . . . . . . Alert | -11 -10 -10 -9 -9 -8 -8 -7 -7 -7 -7 -7 -7 -6 -6 -6 -6 -6 -6 -5 -5 -5 -5 -5 -4 -4 -4 -4 -4 -3 -3 -3 -3 -2 -1 -1 ------- Run | Scr Mat Min Mat Min Mat Sto Fac Was Fac Low Low Dat Pro Fac Low Low Zio Dee Pro Fac Upp Upp War Pro Fac Upp Upp Zhi Pro Res Arm Lab Res Acc Com Peak Influence 7824 | 25 303 145 565 311 1117 798 801 84 551 . . . . 798 . . . . . 725 . . . . 656 . . . . 2038 2412 . 321 906 7824 Average Influence 595 | 13 147 52 383 197 657 495 221 54 208 . . . . 218 . . . . . 194 . . . . 216 . . . . 1111 1113 . 173 425 3283 Maximum Alert Level 5 | . 1 . 2 1 4 3 3 . 2 . . . . 3 . . . . . 3 . . . . 2 . . . . 5 5 . 1 3 5 Low Security (%) 37 | 100 67 100 7 62 2 14 62 100 48 . . . . 61 . . . . . 61 . . . . 55 . . . . 7 . . 35 25 2 Level 1 18 | . 32 . 46 37 10 8 15 . 35 . . . . 14 . . . . . 23 . . . . 19 . . . . 5 . . 64 26 4 Level 2 20 | . . . 45 . 45 62 18 . 15 . . . . 23 . . . . . 11 . . . . 24 . . . . 16 6 . . 27 11 Level 3 9 | . . . . . 38 13 4 . . . . . . . . . . . . 3 . . . . . . . . . 15 46 . . 21 7 Level 4 4 | . . . . . 3 . . . . . . . . . . . . . . . . . . . . . . . . 33 36 . . . . Level 5 5 | . . . . . . . . . . . . . . . . . . . . . . . . . . . . . . 11 3 . . . 40 High Security 4 | . . . . . . . . . . . . . . . . . . . . . . . . . . . . . . 11 6 . . . 33 Max Security . | . . . . . . . . . . . . . . . . . . . . . . . . . . . . . . . . . . . . Squads Dispatched 286 | . 4 1 11 1 22 4 29 . 25 . . . 1 19 . . . . 1 13 . . . 1 24 . . . . 39 20 . 6 30 35 Investigation 98 | . 4 1 11 1 12 4 12 . 11 . . . . 6 . . . . . 7 . . . . 6 . . . . 8 3 . 1 9 2 Extermination 45 | . . . . . . . 7 . 6 . . . . 4 . . . . . 5 . . . . 10 . . . . 4 4 . . 3 2 Reinforcement 37 | . . . . . 5 . 2 . 3 . . . . 6 . . . . . 1 . . . . 3 . . . . 10 1 . 2 3 1 Assault 70 | . . . . . 2 . 4 . . . . . 1 . . . . . 1 . . . . 1 . . . . . 16 12 . . 3 30 Garrison 21 | . . . . . 3 . 4 . 5 . . . . 3 . . . . . . . . . . 5 . . . . 1 . . . . . Intercept 15 | . . . . . . . . . . . . . . . . . . . . . . . . . . . . . . . . . 3 12 . Construction Impeded 14 | . . . . . 2 . . . 1 . . . . 1 . . . . . 1 . . . . 2 . . . . 6 . . . 1 . Haulers Reinforced 7 | . . . . . . . . . . . . . . 3 . . . . . . . . . . . . . . . 2 . . . 2 . Stealth | -11 -10 -10 -9 -9 -8 -8 -7 -7 -7 -7 -7 -7 -6 -6 -6 -6 -6 -6 -5 -5 -5 -5 -5 -4 -4 -4 -4 -4 -3 -3 -3 -3 -2 -1 -1 --------- Run | Scr Mat Min Mat Min Mat Sto Fac Was Fac Low Low Dat Pro Fac Low Low Zio Dee Pro Fac Upp Upp War Pro Fac Upp Upp Zhi Pro Res Arm Lab Res Acc Com Distress Signals 47 | . . . 3 . 4 2 2 . 1 . . . . 1 . . . . . 3 . . . . 3 . . . . 7 1 . 8 2 10 Communications Jammed . | . . . . . . . . . . . . . . . . . . . . . . . . . . . . . . . . . . . . Distress Signals . | . . . . . . . . . . . . . . . . . . . . . . . . . . . . . . . . . . . . Times Spotted 2241 | . 24 28 44 7 93 18 113 5 67 4 13 . 25 51 4 4 . 15 29 78 10 4 443 26 105 5 8 . 8 152 128 2 22 69 637 Peak Tracking Total 148 | . 3 10 5 2 8 3 7 2 6 2 5 . 5 5 2 1 . 6 8 7 3 3 21 9 6 2 3 . 4 15 15 1 5 9 148 Tactical Retreats 57 | . 3 1 1 . 2 1 2 . . . . . 1 . . . . . . 2 2 . 6 . 3 . . . . 1 4 . 2 3 23 Traps | -11 -10 -10 -9 -9 -8 -8 -7 -7 -7 -7 -7 -7 -6 -6 -6 -6 -6 -6 -5 -5 -5 -5 -5 -4 -4 -4 -4 -4 -3 -3 -3 -3 -2 -1 -1 ------- Run | Scr Mat Min Mat Min Mat Sto Fac Was Fac Low Low Dat Pro Fac Low Low Zio Dee Pro Fac Upp Upp War Pro Fac Upp Upp Zhi Pro Res Arm Lab Res Acc Com Traps Triggered 10 | . 1 . . . . . 2 . . . . . . 1 . . . . 2 . . . . . 1 . . . . . . . . . 3 Indirectly 2 | . . . . . . . . . . . . . . . . . . . 2 . . . . . . . . . . . . . . . . Trap Hack Attempts . | . . . . . . . . . . . . . . . . . . . . . . . . . . . . . . . . . . . . Triggered . | . . . . . . . . . . . . . . . . . . . . . . . . . . . . . . . . . . . . Disarmed 31 | . . . 1 . . 6 4 . . . . . . 6 . . . . . 6 . . . . 8 . . . . . . . . . . Reprogrammed 72 | . . . 3 . 5 10 10 . 11 . . . . . . . . . . 10 . . . . . . . . . 4 4 . . . 15 Reused 16 | . . . . . 2 1 2 . 2 . . . . . . . . . 1 . . . . . . . . . . . 1 . . . 7 Traps Extracted . | . . . . . . . . . . . . . . . . . . . . . . . . . . . . . . . . . . . . Installed 4 | . . . . . . . . . . . . . . . . . . . 4 . . . . . . . . . . . . . . . . Triggered 34 | . . . . . 2 1 2 . 2 . . . . . . . . . 5 . . . 11 . . . . . . . 1 . . 1 9 Machines | -11 -10 -10 -9 -9 -8 -8 -7 -7 -7 -7 -7 -7 -6 -6 -6 -6 -6 -6 -5 -5 -5 -5 -5 -4 -4 -4 -4 -4 -3 -3 -3 -3 -2 -1 -1 ---------- Run | Scr Mat Min Mat Min Mat Sto Fac Was Fac Low Low Dat Pro Fac Low Low Zio Dee Pro Fac Upp Upp War Pro Fac Upp Upp Zhi Pro Res Arm Lab Res Acc Com Machines Disabled 103 | . . . 4 1 10 6 19 . . . 1 . 1 1 . . . . . 8 . . . 2 23 . 1 . 3 . 12 1 . 4 6 Max in Single Turn 5 | . . . 4 . 1 1 5 . . . 1 . . . . . . . . 1 . . . 1 4 . 1 . 2 . 1 1 . 1 2 Garrison Access 7 | . . . . . . . 1 . 1 . . . . 1 . . . . . 1 . . . . 1 . . . . 2 . . . . . Phase Generator 1 | . . . . . . . . . . . . . . . . . . . . . . . . . . . . . . . . . . . 1 Machines Sabotaged . | . . . . . . . . . . . . . . . . . . . . . . . . . . . . . . . . . . . . Garrisons Compromised . | . . . . . . . . . . . . . . . . . . . . . . . . . . . . . . . . . . . . Overloaded Fab Kills . | . . . . . . . . . . . . . . . . . . . . . . . . . . . . . . . . . . . . Fab Network Shutdowns 6 | . . . . . . . 1 . 1 . . . . 1 . . . . . 1 . . . . 1 . . . . . 1 . . . . Hacking | -11 -10 -10 -9 -9 -8 -8 -7 -7 -7 -7 -7 -7 -6 -6 -6 -6 -6 -6 -5 -5 -5 -5 -5 -4 -4 -4 -4 -4 -3 -3 -3 -3 -2 -1 -1 --------- Run | Scr Mat Min Mat Min Mat Sto Fac Was Fac Low Low Dat Pro Fac Low Low Zio Dee Pro Fac Upp Upp War Pro Fac Upp Upp Zhi Pro Res Arm Lab Res Acc Com Machines Accessed 223 | . 10 1 15 1 13 19 26 . 18 . 1 4 . 15 . . . . . 23 . 1 1 . 22 . 1 4 1 14 10 2 1 10 10 Terminals 148 | . 8 1 11 . 8 16 15 . 11 . 1 . . 11 . . . . . 18 . 1 . . 12 . . . 1 9 6 . 1 8 10 Fabricators 19 | . . . . . . . 3 . 1 . . . . 1 . . . . . 1 . . . . 6 . . . . 2 4 . . 1 . Repair Stations 1 | . . . . . . . . . . . . . . . . . . . . 1 . . . . . . . . . . . . . . . Recycling Units 14 | . 2 . 2 . 2 2 3 . 3 . . . . . . . . . . . . . . . . . . . . . . . . . . Scanalyzers 13 | . . . 2 . 2 . 2 . 2 . . . . 1 . . . . . 1 . . . . 2 . . . . 1 . . . . . Garrison Access 15 | . . . . . 1 1 3 . 1 . . . . 2 . . . . . 2 . . . . 2 . . . . 2 . . . 1 . Total Hacks 1185 | . 55 3 71 1 83 169 179 . 68 . 6 27 . 78 . . . . . 136 . 15 5 . 78 . 1 16 6 45 39 2 6 52 44 Successful 937 | . 41 2 59 1 70 149 131 . 53 . 6 27 . 61 . . . . . 113 . 13 5 . 63 . 1 16 6 29 34 2 1 24 30 Failed 248 | . 14 1 12 . 13 20 48 . 15 . . . . 17 . . . . . 23 . 2 . . 15 . . . . 16 5 . 5 28 14 Catastrophic 31 | . . . 1 . 1 . 6 . 1 . . . . 1 . . . . . 1 . . . . 2 . . . . 6 3 . 2 5 2 Database Lockouts . | . . . . . . . . . . . . . . . . . . . . . . . . . . . . . . . . . . . . Manual 873 | . 51 3 51 . 51 154 136 . 55 . 1 . . 66 . . . . . 112 . 14 1 . 42 . . . . 33 15 3 5 45 35 Terminals 904 | . 49 3 54 . 50 163 128 . 54 . 6 . . 65 . . . . . 118 . 15 . . 43 . . . 6 34 20 . 6 46 44 Fabricators 86 | . . . . . . . 22 . 4 . . . . 5 . . . . . 5 . . . . 20 . . . . 7 19 . . 4 . Repair Stations 2 | . . . . . . . . . . . . . . . . . . . . 2 . . . . . . . . . . . . . . . Recycling Units 29 | . 6 . 4 . 4 4 6 . 5 . . . . . . . . . . . . . . . . . . . . . . . . . . Scanalyzers 75 | . . . 13 . 27 . 14 . 2 . . . . 3 . . . . . 5 . . . . 9 . . . . 2 . . . . . Garrison Access 37 | . . . . . 2 2 9 . 3 . . . . 5 . . . . . 6 . . . . 6 . . . . 2 . . . 2 . Terminal Hacks 544 | . 26 . 28 1 24 117 66 . 26 . 6 27 . 35 . . . . . 73 . 13 5 . 21 . 1 16 6 11 12 2 1 13 14 Record 41 | . . . . . . 10 . . . . 5 11 . . . . . . . . . 1 . . 1 . . 5 6 . . 2 . . . Part Schematic 64 | . 3 . 2 . 3 3 10 . 6 . . 8 . 3 . . . . . 11 . . . . 2 . . 4 . 4 5 . . . . Robot Schematic 12 | . 2 . . . 2 2 . . . . . 5 . . . . . . . . . . . . 1 . . . . . . . . . . Robot Analysis 97 | . 13 . 7 . 8 8 19 . 4 . . . . 8 . . . . . 12 . . . . 4 . . 3 . 3 1 . . 7 . Prototype ID Bank 199 | . 8 . 11 . 8 74 18 . 7 . . 3 . 15 . . . . . 36 . 10 5 . . . . 4 . . . . . . . Open Door 7 | . . . . 1 . 4 . . . . . . . . . . . . . . . . . . . . 1 . . . 1 . . . . Machine Index 7 | . . . 1 . . . 1 . . . . . . 1 . . . . . 1 . . . . 2 . . . . . . . . . 1 Terminal Index 2 | . . . . . . . . . 1 . . . . . . . . . . . . . . . . . . . . 1 . . . . . Fabricator Index 1 | . . . . . . . . . . . . . . . . . . . . . . . . . . . . . . 1 . . . . . Repair Station Index 1 | . . . . . . . . . 1 . . . . . . . . . . . . . . . . . . . . . . . . . . Recycling Unit Index 1 | . . . . . . . . . 1 . . . . . . . . . . . . . . . . . . . . . . . . . . Scanalyzer Index 1 | . . . . . . . . . 1 . . . . . . . . . . . . . . . . . . . . . . . . . . Garrison Index 1 | . . . . . . . . . 1 . . . . . . . . . . . . . . . . . . . . . . . . . . Alert Level 8 | . . . . . . . 2 . . . . . . 1 . . . . . 3 . . . . . . . . . . . . . . 2 Unreport Threat 50 | . . . . . . 8 5 . 1 . 1 . . 4 . . . . . 6 . 2 . . 8 . . . . . 4 . . 6 5 Locate Traps 1 | . . . . . . 1 . . . . . . . . . . . . . . . . . . . . . . . . . . . . . Disarm Traps 9 | . . . 2 . . 1 1 . . . . . . 2 . . . . . 1 . . . . 2 . . . . . . . . . . Reprogram Traps 23 | . . . 4 . 2 4 3 . 2 . . . . . . . . . . 2 . . . . . . . . . 1 1 . . . 4 Dispatch Records 2 | . . . . . . . 2 . . . . . . . . . . . . . . . . . . . . . . . . . . . . Transport Status 1 | . . . . . . . 1 . . . . . . . . . . . . . . . . . . . . . . . . . . . . Hauler Manifests 11 | . . . 1 . 1 2 1 . 1 . . . . 1 . . . . . 1 . . . . 1 . . . . 1 . . 1 . . Registered Components 2 | . . . . . . . 2 . . . . . . . . . . . . . . . . . . . . . . . . . . . . Registered Prototypes 1 | . . . . . . . 1 . . . . . . . . . . . . . . . . . . . . . . . . . . . . Disengage Seal 2 | . . . . . . . . . . . . . . . . . . . . . . . . . . . . . . . . . . . 2 Fabricator Hacks 62 | . . . . . . . 17 . 3 . . . . 4 . . . . . 4 . . . . 13 . . . . 4 15 . . 2 . Load Schematic 29 | . . . . . . . 7 . 1 . . . . 2 . . . . . 2 . . . . 8 . . . . 2 6 . . 1 . Build 33 | . . . . . . . 10 . 2 . . . . 2 . . . . . 2 . . . . 5 . . . . 2 9 . . 1 . Repair Station Hacks 2 | . . . . . . . . . . . . . . . . . . . . 2 . . . . . . . . . . . . . . . Scan Component 1 | . . . . . . . . . . . . . . . . . . . . 1 . . . . . . . . . . . . . . . Repair 1 | . . . . . . . . . . . . . . . . . . . . 1 . . . . . . . . . . . . . . . Recycling Unit Hacks 16 | . 3 . 2 . 2 2 4 . 3 . . . . . . . . . . . . . . . . . . . . . . . . . . Report Inventory 13 | . 1 . 2 . 2 2 3 . 3 . . . . . . . . . . . . . . . . . . . . . . . . . . Retrieve Components 3 | . 2 . . . . . 1 . . . . . . . . . . . . . . . . . . . . . . . . . . . . Scanalyzer 62 | . . . 10 . 25 . 12 . . . . . . 2 . . . . . 4 . . . . 7 . . . . 2 . . . . . Insert Component 30 | . . . 6 . 11 . 6 . . . . . . 1 . . . . . 2 . . . . 3 . . . . 1 . . . . . Analyze 32 | . . . 4 . 14 . 6 . . . . . . 1 . . . . . 2 . . . . 4 . . . . 1 . . . . . Garrison Access Hacks 6 | . . . . . . . . . 1 . . . . 1 . . . . . 1 . . . . 1 . . . . 2 . . . . . Seal Access 6 | . . . . . . . . . 1 . . . . 1 . . . . . 1 . . . . 1 . . . . 2 . . . . . Unauthorized Hacks 244 | . 12 2 19 . 19 30 32 . 20 . . . . 19 . . . . . 29 . . . . 21 . . . . 10 7 . . 8 16 Terminals 181 | . 10 2 15 . 13 26 17 . 14 . . . . 13 . . . . . 25 . . . . 11 . . . . 8 4 . . 7 16 Assimilate 18 | . . . 3 . 1 . 2 . 3 . . . . 2 . . . . . 6 . . . . 1 . . . . . . . . . . Botnet 120 | . 8 . 10 . 6 14 12 . 9 . . . . 8 . . . . . 15 . . . . 9 . . . . 8 4 . . 7 10 Detonate 4 | . . 1 . . 2 . . . . . . . . 1 . . . . . . . . . . . . . . . . . . . . . Disrupt 29 | . 2 . 1 . 4 11 2 . 1 . . . . . . . . . . 3 . . . . . . . . . . . . . . 5 Operators 9 | . . . 1 . . 1 1 . 1 . . . . 2 . . . . . 1 . . . . 1 . . . . . . . . . 1 Sabotage 1 | . . 1 . . . . . . . . . . . . . . . . . . . . . . . . . . . . . . . . . Fabricators 19 | . . . . . . . 4 . 1 . . . . 1 . . . . . 1 . . . . 7 . . . . 2 3 . . . . Report 2 | . . . . . . . 1 . . . . . . . . . . . . . . . . . 1 . . . . . . . . . . Siphon 17 | . . . . . . . 3 . 1 . . . . 1 . . . . . 1 . . . . 6 . . . . 2 3 . . . . Repair Stations . | . . . . . . . . . . . . . . . . . . . . . . . . . . . . . . . . . . . . Recycling Units 12 | . 2 . 2 . 2 2 2 . 2 . . . . . . . . . . . . . . . . . . . . . . . . . . Tunnel 12 | . 2 . 2 . 2 2 2 . 2 . . . . . . . . . . . . . . . . . . . . . . . . . . Scanalyzers 10 | . . . 2 . 2 . 2 . 2 . . . . 1 . . . . . 1 . . . . . . . . . . . . . . . Extract 10 | . . . 2 . 2 . 2 . 2 . . . . 1 . . . . . 1 . . . . . . . . . . . . . . . Garrison Access 22 | . . . . . 2 2 7 . 1 . . . . 4 . . . . . 2 . . . . 3 . . . . . . . . 1 . Reprogram 22 | . . . . . 2 2 7 . 1 . . . . 4 . . . . . 2 . . . . 3 . . . . . . . . 1 . Data Cores Recovered 2 | . . . . . . 1 1 . . . . . . . . . . . . . . . . . . . . . . . . . . . . Used 2 | . . . . . . 1 1 . . . . . . . . . . . . . . . . . . . . . . . . . . . . Hacking Detections 178 | . 10 1 13 . 10 15 17 . 14 . 1 . . 12 . . . . . 21 . 1 . . 21 . . . 1 12 9 . 1 9 10 Full Trace Events 84 | . 8 . 10 . 8 5 8 . 7 . . . . 5 . . . . . 6 . . . . 6 . . . . 8 2 . 1 8 2 Feedback Events 14 | . 1 . . . 1 1 1 . 2 . . . . 1 . . . . . . . . . . 2 . . . . 1 . . . 3 1 Corruption 9 | . 1 . . . . 1 . . 2 . . . . 1 . . . . . . . . . . 1 . . . . 1 . . . 2 . Hackware Fried 5 | . . . . . 1 . 1 . . . . . . . . . . . . . . . . . 1 . . . . . . . . 1 1 Feedback Blocked . | . . . . . . . . . . . . . . . . . . . . . . . . . . . . . . . . . . . . Robot Schematics Acquired 12 | . 2 . . . 2 2 . . . . . 5 . . . . . . . . . . . . 1 . . . . . . . . . . Robots Built 8 | . . . . . . . 1 . 2 . . . . . . . . . . . . . . . 2 . . . . . 3 . . . . Matter 1609 | . . . . . . . 164 . 328 . . . . . . . . . . . . . . . 328 . . . . . 789 . . . . Time 1025 | . . . . . . . 58 . 232 . . . . . . . . . . . . . . . 174 . . . . . 561 . . . . Total Robot Build Rating 36 | . . . . . . . 3 . 6 . . . . . . . . . . . . . . . 6 . . . . . 21 . . . . Part Schematics Acquired 121 | . 3 . 8 . 18 3 19 . 18 . . 8 . 9 . . . . . 18 . . . . 3 . . 4 . 5 5 . . . . Parts Built 28 | . . . . . . . 9 . . . . . . 3 . . . . . 2 . . . . 4 . . . . 2 7 . . 1 . Matter 5312 | . . . . . . . 1074 . . . . . . 372 . . . . . 451 . . . . 676 . . . . 600 1722 . . 417 . Time 2505 | . . . . . . . 414 . . . . . . 258 . . . . . 321 . . . . 312 . . . . 142 984 . . 74 . Total Part Build Rating 181 | . . . . . . . 44 . . . . . . 17 . . . . . 11 . . . . 27 . . . . 17 56 . . 9 . Parts Repaired 1 | . . . . . . . . . . . . . . . . . . . . 1 . . . . . . . . . . . . . . . Time 18 | . . . . . . . . . . . . . . . . . . . . 18 . . . . . . . . . . . . . . . Parts Recycled . | . . . . . . . . . . . . . . . . . . . . . . . . . . . . . . . . . . . . Recycled Matter . | . . . . . . . . . . . . . . . . . . . . . . . . . . . . . . . . . . . . Retrieved Matter . | . . . . . . . . . . . . . . . . . . . . . . . . . . . . . . . . . . . . Retrieved Components 16 | . 14 . . . . . 2 . . . . . . . . . . . . . . . . . . . . . . . . . . . . Parts Scanalyzed 27 | . . . 4 . 11 . 6 . . . . . . 1 . . . . . 2 . . . . 2 . . . . 1 . . . . . Part Schematics Acquired 26 | . . . 4 . 11 . 6 . . . . . . 1 . . . . . 2 . . . . 1 . . . . 1 . . . . . Parts Damaged 4 | . . . . . 3 . 1 . . . . . . . . . . . . . . . . . . . . . . . . . . . . Bothacking | -11 -10 -10 -9 -9 -8 -8 -7 -7 -7 -7 -7 -7 -6 -6 -6 -6 -6 -6 -5 -5 -5 -5 -5 -4 -4 -4 -4 -4 -3 -3 -3 -3 -2 -1 -1 ------------ Run | Scr Mat Min Mat Min Mat Sto Fac Was Fac Low Low Dat Pro Fac Low Low Zio Dee Pro Fac Upp Upp War Pro Fac Upp Upp Zhi Pro Res Arm Lab Res Acc Com Used RIF Installer . | . . . . . . . . . . . . . . . . . . . . . . . . . . . . . . . . . . . . Robots Hacked 16 | . . . . . . . . . 1 . . . . . . . . . . . . . 4 . . . . . . . . 1 5 2 3 Non-combat 2 | . . . . . . . . . 1 . . . . . . . . . . . . . . . . . . . . . . . 1 . . Combat 14 | . . . . . . . . . . . . . . . . . . . . . . . 4 . . . . . . . . 1 4 2 3 Robot Hacks Applied 17 | . . . . . . . . . 1 . . . . . . . . . . . . . 4 . . . . . . . . 2 5 2 3 parse_system 17 | . . . . . . . . . 1 . . . . . . . . . . . . . 4 . . . . . . . . 2 5 2 3 Manual 1 | . . . . . . . . . . . . . . . . . . . . . . . . . . . . . . . . . 1 . . Relay Couplers Released 4 | . . . . . . . . . 2 . . . . . . . . . . . . . . . 2 . . . . . . . . . . Programmers 4 | . . . . . . . . . 2 . . . . . . . . . . . . . . . 2 . . . . . . . . . . Robots Rewired 21 | . . . 2 . 1 . . . . . . . 1 . . . . . 2 . . . . 1 . 4 . . . . 10 . . . . Allies Hacked 9 | . . . . . . . 1 . 1 . . . . . . 1 . . . 1 . . . . 3 . . . . 1 1 . . . . Hacks Repelled 1 | . . . . . . . . . . . . . . . . . . . . . . . 1 . . . . . . . . . . . . Allies | -11 -10 -10 -9 -9 -8 -8 -7 -7 -7 -7 -7 -7 -6 -6 -6 -6 -6 -6 -5 -5 -5 -5 -5 -4 -4 -4 -4 -4 -3 -3 -3 -3 -2 -1 -1 -------- Run | Scr Mat Min Mat Min Mat Sto Fac Was Fac Low Low Dat Pro Fac Low Low Zio Dee Pro Fac Upp Upp War Pro Fac Upp Upp Zhi Pro Res Arm Lab Res Acc Com Total Allies 107 | . . 3 4 2 6 11 13 . 6 . . . 2 9 . . . . 2 6 . . . 1 12 4 . . . . 22 . . 4 . Largest Group 12 | . . 3 4 4 6 11 9 3 5 4 4 4 6 10 8 7 4 3 5 6 3 3 3 1 4 6 6 6 6 6 12 1 . 4 . Highest-Rated Group 549 | . . 40 54 69 104 182 160 58 128 81 81 80 204 254 207 178 90 65 144 193 84 84 84 47 171 183 183 183 183 183 549 47 . 232 . Highest-Rated Ally 94 | . . 16 16 31 31 29 32 26 32 26 26 26 94 30 29 29 29 29 49 49 49 49 49 47 49 38 38 38 38 38 58 47 . 58 . Total Orders 619 | . . . 16 6 44 31 97 13 71 5 8 1 15 65 4 4 2 3 21 55 7 4 12 16 52 4 9 1 5 29 19 . . . . STAY 135 | . . . 4 3 14 7 17 5 9 1 2 . 5 13 2 2 1 . 5 8 2 2 1 7 11 1 4 1 1 3 4 . . . . GOTO 186 | . . . 4 . 13 9 27 2 25 2 1 1 3 13 . . . 2 6 22 3 . 8 1 17 1 . . 2 15 9 . . . . FOLLOW 243 | . . . 8 3 17 15 35 5 25 2 2 . 6 25 2 2 1 1 10 25 2 2 3 8 23 1 3 . 2 9 6 . . . . AID 55 | . . . . . . . 18 1 12 . 3 . 1 14 . . . . . . . . . . 1 1 2 . . 2 . . . . . Ally Attacks 731 | . . . 69 6 60 41 111 3 19 . . . 22 117 9 3 . . 5 26 . . . . 73 . . . 1 19 133 . . 14 . Total Damage 14073 | . . . 830 85 815 530 1498 40 537 . . . 537 1616 112 67 . . 96 845 . . . . 2009 . . . 46 461 3760 . . 189 . Kills 97 | . . . 15 . 7 8 11 . 5 . . . 5 13 . . . . . 6 . . . . 7 . . . 1 . 18 . . 1 . Allies Corrupted 11 | . . . . . . . . . 2 . . . . . . . . . . 1 . . 3 . 1 . . . . . 1 . . 3 . Allies Melted . | . . . . . . . . . . . . . . . . . . . . . . . . . . . . . . . . . . . . Intel | -11 -10 -10 -9 -9 -8 -8 -7 -7 -7 -7 -7 -7 -6 -6 -6 -6 -6 -6 -5 -5 -5 -5 -5 -4 -4 -4 -4 -4 -3 -3 -3 -3 -2 -1 -1 ------- Run | Scr Mat Min Mat Min Mat Sto Fac Was Fac Low Low Dat Pro Fac Low Low Zio Dee Pro Fac Upp Upp War Pro Fac Upp Upp Zhi Pro Res Arm Lab Res Acc Com Robot Analysis Total 96 | . 13 . 7 . 8 8 18 . 4 . . . . 8 . . . . . 12 . . . . 4 . . 3 . 3 1 . . 7 . Derelict Logs Recovered 17 | . . . . 1 . . . . . 1 1 . 2 . 2 1 1 . 1 . 2 . . 3 . 1 1 . . . . . . . . Drone Launches 40 | . . . . . . 16 . . . . . . . . . . . . 3 . . . . . 15 . . . . . . . . . 6 Drone Recoveries . | . . . . . . . . . . . . . . . . . . . . . . . . . . . . . . . . . . . . Exploration | -11 -10 -10 -9 -9 -8 -8 -7 -7 -7 -7 -7 -7 -6 -6 -6 -6 -6 -6 -5 -5 -5 -5 -5 -4 -4 -4 -4 -4 -3 -3 -3 -3 -2 -1 -1 ------------- Run | Scr Mat Min Mat Min Mat Sto Fac Was Fac Low Low Dat Pro Fac Low Low Zio Dee Pro Fac Upp Upp War Pro Fac Upp Upp Zhi Pro Res Arm Lab Res Acc Com Turns Passed 51335 | 116 840 654 1840 370 2328 1183 4872 306 3489 560 595 125 962 2618 726 833 890 1366 965 3669 635 526 3241 866 3961 488 510 225 383 2307 2368 500 655 1226 4137 Spaces Moved 30473 | 93 713 459 1410 263 1504 836 2942 89 2110 373 341 90 579 1588 497 563 600 867 532 1970 402 360 1094 507 1832 300 339 158 252 1273 1599 363 441 772 2362 Core 22 | 22 . . . . . . . . . . . . . . . . . . . . . . . . . . . . . . . . . . . Treads . | . . . . . . . . . . . . . . . . . . . . . . . . . . . . . . . . . . . . Legs . | . . . . . . . . . . . . . . . . . . . . . . . . . . . . . . . . . . . . Wheels 30451 | 71 713 459 1410 263 1504 836 2942 89 2110 373 341 90 579 1588 497 563 600 867 532 1970 402 360 1094 507 1832 300 339 158 252 1273 1599 363 441 772 2362 Hover . | . . . . . . . . . . . . . . . . . . . . . . . . . . . . . . . . . . . . Flight . | . . . . . . . . . . . . . . . . . . . . . . . . . . . . . . . . . . . . Fastest Speed 50 | 50 80 90 90 100 100 110 100 150 130 140 140 140 140 130 140 140 140 130 130 130 140 140 130 140 130 140 140 140 140 120 110 110 120 120 120 Average Speed 129 | 75 83 90 99 100 109 111 141 171 141 140 140 140 140 139 140 140 140 139 139 139 140 140 140 140 138 140 140 140 140 134 116 119 120 120 120 Slowest Speed 190 | 100 90 90 100 100 110 120 160 180 180 140 140 140 140 140 140 140 140 180 140 140 140 140 190 140 140 140 140 140 140 140 120 120 120 120 130 Overloaded Moves . | . . . . . . . . . . . . . . . . . . . . . . . . . . . . . . . . . . . . Propulsion Burnouts . | . . . . . . . . . . . . . . . . . . . . . . . . . . . . . . . . . . . . Robots Hopped 1 | . . . . . . . . . . . . . . . . . . . . . . . . . . . . . . . 1 . . . . Cave-ins Triggered 1 | . . . . . 1 . . . . . . . . . . . . . . . . . . . . . . . . . . . . . . Teleports 2 | . . . . . . . . . . . . . . . . . . . . . . . . . . . . 1 . . . 1 . . . Exploration Rate (%) 65 | 4 75 81 96 83 93 91 73 86 54 71 62 74 80 41 70 79 72 74 77 50 77 68 79 70 52 63 58 61 56 30 54 99 13 19 81 Regions Visited 35 Branch Regions 23 Pre-discovered Areas 23 | . 2 1 2 1 2 3 2 . 2 1 . 1 . . . . . . . . 1 . . 1 . . . 3 1 . . . . . . Known Exits Taken 33 | 1 1 1 1 1 1 1 . . 1 1 1 1 1 1 1 1 1 1 1 1 1 1 1 1 1 1 1 1 1 1 1 1 1 1 . Unknown Exits Taken . | . . . . . . . . . . . . . . . . . . . . . . . . . . . . . . . . . . . . Scrap Searched 33 | . . . . . . . . . . 3 1 . 1 . 3 2 4 . 3 . 1 3 . 2 . 4 3 . 3 . . . . . . Spaces Dug 59 | . . . 5 . 1 3 1 . 10 . . . . 5 . 1 2 . . 2 . . 4 . 4 1 . . . 8 2 . . 3 7 Terrain Destroyed 929 | . . . 61 . 89 15 81 100 10 . . . . 6 . 1 2 . 6 70 . . 101 6 69 1 . . 25 28 25 . 9 9 215 Melee 33 | . . . 5 . 1 2 1 . 10 . . . . 5 . 1 2 . . 2 . . 4 . . . . . . . . . . . . Projectile 147 | . . . . . 14 10 . . . . . . . 1 . . . . . . . . . 1 15 1 . . 1 26 19 . 9 9 41 AOE 749 | . . . 56 . 74 3 80 100 . . . . . . . . . . 6 68 . . 97 5 54 . . . 24 2 6 . . . 174 Actions | -11 -10 -10 -9 -9 -8 -8 -7 -7 -7 -7 -7 -7 -6 -6 -6 -6 -6 -6 -5 -5 -5 -5 -5 -4 -4 -4 -4 -4 -3 -3 -3 -3 -2 -1 -1 --------- Run | Scr Mat Min Mat Min Mat Sto Fac Was Fac Low Low Dat Pro Fac Low Low Zio Dee Pro Fac Upp Upp War Pro Fac Upp Upp Zhi Pro Res Arm Lab Res Acc Com Total 39685 | 118 859 568 1682 348 1922 1026 3425 216 2387 394 416 89 661 1844 511 583 630 967 683 2643 441 365 2417 610 3221 368 373 161 280 1832 2096 423 553 1060 3513 Wait 4010 | . 59 6 139 65 179 116 186 88 98 . 46 . 12 143 3 4 14 6 27 496 25 . 806 6 1032 25 18 . 5 114 157 2 28 29 76 Move 30436 | 92 712 458 1409 262 1503 835 2942 88 2109 372 340 89 578 1587 496 562 599 866 531 1969 401 359 1093 506 1831 299 338 157 251 1272 1596 362 440 771 2361 Hop 1 | . . . . . . . . . . . . . . . . . . . . . . . . . . . . . . . 1 . . . . Pick Up 70 | . 4 . 4 2 6 . 5 . . . . . . 1 . . 1 4 3 3 . . 1 2 7 . . . . 1 4 3 . 7 12 Fast Attach 159 | 8 8 3 3 1 7 10 19 1 6 . . . 2 6 . . . 10 2 4 . . 29 . 3 . 2 3 2 4 2 9 . 3 12 Attach 54 | . . . 4 . 7 . 3 . 1 . . . . 2 . . 1 2 . 1 . . . . 3 . . . . 2 2 4 1 4 17 Detach 64 | . 1 . 3 . 8 1 11 2 3 . . . 1 2 . . . 3 1 3 . . 3 . 3 . . . . 2 1 4 . . 12 Swap 123 | 2 1 2 4 . 6 3 10 2 7 1 1 . . 8 . 1 1 6 2 9 . . 5 2 9 . . . . 7 5 4 7 7 11 Drop 198 | 2 6 4 6 2 9 10 21 1 4 1 . . 2 7 . . 1 14 5 5 . . 29 3 10 . 1 1 2 4 7 8 . 12 21 Fire 3011 | 14 52 62 60 10 108 30 129 15 102 7 16 . 28 47 6 8 . 19 32 91 12 6 191 32 212 19 9 . 11 312 266 25 69 182 829 Melee 66 | . . . 12 . 1 2 1 . 12 . 1 . . 8 . 1 13 7 . 2 . . 6 . . . . . . . . . . . . Ram 2 | . . . . . . . . . . . . . . . . . . . . . . . . . 1 . . . . . . . . 1 . Kick . | . . . . . . . . . . . . . . . . . . . . . . . . . . . . . . . . . . . . Crush . | . . . . . . . . . . . . . . . . . . . . . . . . . . . . . . . . . . . . Escape Stasis 44 | . . . . . . . 17 . . . . . . . . . . . . . . . . . . . . . . . . . . . 27 Rewire 80 | . . . 5 . 5 . . . . . . . 13 . . . . . 3 . . . . 8 3 14 . . . . 29 . . . . Trap 4 | . . . . . . . . . . . . . . . . . . . 4 . . . . . . . . . . . . . . . . Miscellaneous 1363 | . 16 33 33 6 83 19 81 19 45 13 12 . 25 33 6 7 . 30 73 60 3 . 254 51 107 11 5 . 9 114 26 2 8 44 135 Route ------- -11/Scrapyard -10/Materials (discovered 3 exits: *Mat x2 / *Min) -10/Mines (discovered 3 exits: *Mat x2 / Exi) -9/Materials (discovered 5 exits: *Mat x3 / *Min x2) -9/Mines (discovered 2 exits: *Mat x2) -8/Materials (discovered 4 exits: *Fac x3 / *Sto) -8/Storage (discovered 2 exits: *Fac / *Rec) -7/Factory (discovered 6 exits: *Fac x4 / *Low x2) -7/Waste -7/Factory (discovered 5 exits: *Fac x3 / *Low x2) -7/Lower Caves -7/Lower Caves (discovered 2 exits: Fac / *Dat) -7/Data Miner -6/Proximity Caves -6/Factory (discovered 3 exits: *Fac / *Low x2) -6/Lower Caves -6/Lower Caves (discovered 2 exits: *Fac / *Zio) -6/Zion (discovered 2 exits: *Dee / *Pro) -6/Deep Caves -5/Proximity Caves -5/Factory (discovered 7 exits: *Fac x4 / *Upp / *Ext x2) -5/Upper Caves (discovered 2 exits: *Upp / *War) -5/Upper Caves (discovered 2 exits: *Fac / *War) -5/Warlord -4/Proximity Caves -4/Factory (discovered 5 exits: *Res x3 / *Upp x2) -4/Upper Caves -4/Upper Caves (discovered 2 exits: Res / *Zhi) -4/Zhirov -3/Proximity Caves -3/Research (discovered 4 exits: Res x2 / *Arm / Tes) -3/Armory (discovered 3 exits: *Res x2 / *Lab) -3/Lab -2/Research (discovered 2 exits: *Acc / *Qua) -1/Access -1/Command (discovered 2 exits: *Sur x2) 0b11 Command History --------- Turn | Location | Event 5 | -11/Scrapyard | Identified exit to Materials 5 | -11/Scrapyard | Discovered exit to Materials (range 15) 56 | -11/Scrapyard | Upgraded with Utility slot (x2) 56 | -11/Scrapyard | Upgraded with Weapon slot (x2) 117 | -11/Scrapyard | Entered Materials 210 | -10/Materials | Identified exit to Mines 210 | -10/Materials | Discovered exit to Mines (range 16) 308 | -10/Materials | Build established: Hacker-Gunner 537 | -10/Materials | Identified exit to Materials 537 | -10/Materials | Discovered exit to Materials (range 16) 645 | -10/Materials | Reached level 2 711 | -10/Materials | Upgraded with Utility slot (x1) 711 | -10/Materials | Upgraded with Weapon slot (x1) 741 | -10/Materials | Discovered exit to Materials (range 16) 957 | -10/Materials | Entered Mines 964 | -10/Mines | Build established: Hacker-Skirmisher 965 | -10/Mines | Met a Derelict bent on vengeance 1019 | -10/Mines | Reached level 3 1139 | -10/Mines | Found a damaged Exp. Sensor Array with a note attached 1142 | -10/Mines | Found Prototype Device 1142 | -10/Mines | Identified Exp. Sensor Array 1176 | -10/Mines | Learned location of Storage (-8) 1218 | -10/Mines | Assembled infested the area 1223 | -10/Mines | Assisted by a Guerilla fighting off Assembled 1237 | -10/Mines | Discovered exit to Materials (range 13) 1340 | -10/Mines | Destroyed 10 combat bots 1346 | -10/Mines | Upgraded with Utility slot (x1) 1592 | -10/Mines | Discovered exit to Materials (range 8) 1598 | -10/Mines | Assisted by bots powering up and referring to "LRC-V3" 1603 | -10/Mines | Identified exit to Exiles 1603 | -10/Mines | Discovered exit to Exiles (range 11) 1611 | -10/Mines | Entered Materials 1611 | -9/Materials | Accompanied by 3 allies 1613 | -9/Materials | Reached level 4 1613 | -9/Materials | Reached level 5 1715 | -9/Materials | Upgraded with Utility slot (x1) 1741 | -9/Materials | Reached level 6 1805 | -9/Materials | Build established: Scavenger-Skirmisher 1943 | -9/Materials | Identified exit to Mines 1943 | -9/Materials | Discovered exit to Mines (range 16) 2099 | -9/Materials | Reached level 7 2201 | -9/Materials | Identified exit to Materials 2201 | -9/Materials | Discovered exit to Materials (range 16) 2386 | -9/Materials | Discovered exit to Mines (range 14) 2541 | -9/Materials | Build established: Hacker-Assassin 2733 | -9/Materials | Reached level 8 2819 | -9/Materials | Discovered exit to Materials (range 15) 2985 | -9/Materials | Build established: Scavenger-Skirmisher 3067 | -9/Materials | Discovered exit to Materials (range 10) 3297 | -9/Materials | Reached level 9 3451 | -9/Materials | Entered Mines 3451 | -9/Mines | Accompanied by 2 allies 3454 | -9/Mines | A weapon hastily lodged in a ceiling crevice suddenly fell to the ground 3455 | -9/Mines | Upgraded with Weapon slot (x1) 3512 | -9/Mines | Joined a pair of Derelicts in attacking an 0b10 outpost 3569 | -9/Mines | Met a Derelict shopkeep closing up shop 3686 | -9/Mines | Discovered exit to Materials (range 10) 3729 | -9/Mines | Discovered exit to Materials (range 12) 3821 | -9/Mines | Entered Materials 3821 | -8/Materials | Accompanied by 4 allies 3823 | -8/Materials | Reached level 10 3826 | -8/Materials | Led the pair of lost Derelicts to an unsafe place 3886 | -8/Materials | Crushed by falling debris 3902 | -8/Materials | Reached level 11 3922 | -8/Materials | Upgraded with Power slot (x1) 4071 | -8/Materials | Identified exit to Factory 4071 | -8/Materials | Discovered exit to Factory (range 13) 4330 | -8/Materials | Reached level 12 4383 | -8/Materials | Destroyed 8 combat bots 4507 | -8/Materials | Garrison activated, responded to threat 4621 | -8/Materials | First assault squad dispatched 5057 | -8/Materials | Upgraded with Utility slot (x1) 5075 | -8/Materials | Reached level 13 5107 | -8/Materials | Discovered exit to Factory (range 20) 5343 | -8/Materials | Upgraded with Utility slot (x1) 5504 | -8/Materials | Discovered exit to Factory (range 19) 5644 | -8/Materials | Build established: Hacker-Skirmisher 5732 | -8/Materials | Identified exit to Storage 5732 | -8/Materials | Discovered exit to Storage (range 9) 5808 | -8/Materials | Hacking Suite fried by hacking feedback 5815 | -8/Materials | Reached level 14 5870 | -8/Materials | Upgraded with Utility slot (x1) 5913 | -8/Materials | Upgraded with Utility slot (x1) 6083 | -8/Materials | Destroyed 8 combat bots 6149 | -8/Materials | Entered Storage 6149 | -8/Storage | Accompanied by 1 ally 6159 | -8/Storage | Assisted by bots powering up and referring to "LRC-V3" 6751 | -8/Storage | Learned location of Armory (-3) 6944 | -8/Storage | Build established: Wizard-Skirmisher 6964 | -8/Storage | Discovered exit to Factory (range 15) 7043 | -8/Storage | Reached level 15 7185 | -8/Storage | Identified exit to Recycling 7185 | -8/Storage | Discovered exit to Recycling (range 17) 7225 | -8/Storage | Used back door to open Recycling access 7332 | -8/Storage | Entered Factory 7332 | -7/Factory | Accompanied by 24 allies 7422 | -7/Factory | Upgraded with Utility slot (x1) 7699 | -7/Factory | P-60 Hacker assimilated allied Trooper 3a 7737 | -7/Factory | Reached level 16 8094 | -7/Factory | Fabricated Hvy. Reactive Plating? 8126 | -7/Factory | Fabricated Lrn. Terrain Scanner (x1) 8134 | -7/Factory | Fabricated Imp. Particle Charger? 8138 | -7/Factory | Identified exit to Lower Caves 8138 | -7/Factory | Discovered exit to Lower Caves (range 24) 8221 | -7/Factory | Fabricated Imp. System Backup Module? 8270 | -7/Factory | Garrison activated, responded to threat 8422 | -7/Factory | Fabricated Imp. System Shield? 8443 | -7/Factory | Build established: Hacker-Skirmisher 8486 | -7/Factory | Fabricated M-28 Smith? 8710 | -7/Factory | Identified exit to Factory 8710 | -7/Factory | Discovered exit to Factory (range 14) 9045 | -7/Factory | Fabricated Imp. System Shield (x1) 9097 | -7/Factory | Fabricated Imp. Hacking Suite (x1) 9181 | -7/Factory | Garrison activated, responded to threat 9241 | -7/Factory | Local fabrication network quarantined 9944 | -7/Factory | Reached level 17 10637 | -7/Factory | Discovered exit to Factory (range 24) 10793 | -7/Factory | Garrison activated, responded to threat 10932 | -7/Factory | First assault squad dispatched 11025 | -7/Factory | Discovered exit to Factory (range 30) 11073 | -7/Factory | Destroyed 7 combat bots 11200 | -7/Factory | Reached level 18 11247 | -7/Factory | Discovered exit to Lower Caves (range 18) 11330 | -7/Factory | Imp. System Shield fried by hacking feedback 12014 | -7/Factory | Discovered exit to Factory (range 19) 12204 | -7/Factory | Sucked down chute 12204 | -7/Factory | Entered Waste 12219 | -7/Waste | EMP discharged 12230 | -7/Waste | Spotted C-40 Crusher 12232 | -7/Waste | Destroyed C-40 Crusher 12242 | -7/Waste | Spotted C-40 Crusher 12249 | -7/Waste | Destroyed C-40 Crusher 12260 | -7/Waste | Found Damper Plating 12270 | -7/Waste | Spotted C-40 Crusher 12272 | -7/Waste | Destroyed C-40 Crusher 12280 | -7/Waste | 2 allies followed down the chute 12286 | -7/Waste | Spotted C-40 Crusher 12290 | -7/Waste | Destroyed C-40 Crusher 12319 | -7/Waste | EMP discharged 12320 | -7/Waste | Spotted C-40 Crusher 12326 | -7/Waste | Destroyed C-40 Crusher 12335 | -7/Waste | Identified exit to Factory 12335 | -7/Waste | Discovered exit to Factory (range 24) 12369 | -7/Waste | Spotted C-40 Crusher 12387 | -7/Waste | Destroyed C-40 Crusher 12419 | -7/Waste | EMP discharged 12505 | -7/Waste | 2 allies followed down the chute 12510 | -7/Waste | Entered Factory 12510 | -7/Factory | Accompanied by 7 allies 12535 | -7/Factory | 7 allies followed down the chute 12633 | -7/Factory | Upgraded with Propulsion slot (x1) 12813 | -7/Factory | Build established: Hacker-Mutant 13187 | -7/Factory | Build established: Hacker-Skirmisher 13336 | -7/Factory | Fabricated M-28 Smith (x1) 13407 | -7/Factory | Local fabrication network quarantined 13468 | -7/Factory | Fabricated M-28 Smith? 13872 | -7/Factory | Discovered exit to Factory (range 13) 14149 | -7/Factory | Discovered exit to Factory (range 23) 14352 | -7/Factory | Garrison activated, responded to threat 14435 | -7/Factory | Discovered exit to Lower Caves (range 15) 14727 | -7/Factory | Discovered exit to Factory (range 24) 15244 | -7/Factory | Build established: Hacker-Assassin 15267 | -7/Factory | Discovered exit to Lower Caves (range 24) 15443 | -7/Factory | Reached level 19 15774 | -7/Factory | Garrison activated, responded to threat 15999 | -7/Factory | Entered Lower Caves 15999 | -7/Lower Caves | Accompanied by 8 allies 16200 | -7/Lower Caves | Learned location of Zion (-6) 16229 | -7/Lower Caves | Build established: Hacker-Mutant 16503 | -7/Lower Caves | Identified exit to Lower Caves 16503 | -7/Lower Caves | Discovered exit to Lower Caves (range 18) 16559 | -7/Lower Caves | Entered another Lower Caves area 16559 | -7/Lower Caves | Accompanied by 8 allies 16571 | -7/Lower Caves | Build established: Hacker-Skirmisher 16572 | -7/Lower Caves | Discovered exit to Factory (range 14) 16770 | -7/Lower Caves | Encountered a Warlord checkpoint 16789 | -7/Lower Caves | Identified exit to Data Miner 17052 | -7/Lower Caves | Attracted the attention of an 0b10 base 17101 | -7/Lower Caves | Destroyed 7 combat bots 17124 | -7/Lower Caves | Learned location of 1 exit from Proximity Caves 17124 | -7/Lower Caves | Learned location of 1 exit from Research 17124 | -7/Lower Caves | Learned Research security intel 17124 | -7/Lower Caves | Learned Extension terminal intel 17154 | -7/Lower Caves | Entered Data Miner 17154 | -7/Data Miner | Accompanied by 6 allies 17154 | -7/Data Miner | Identified exit to Proximity Caves 17154 | -7/Data Miner | Discovered exit to Proximity Caves (range 6) 17181 | -7/Data Miner | Met Data Miner 17220 | -7/Data Miner | Learned location of Section 7 (-2) 17220 | -7/Data Miner | Acquired the access code to Warlord's prototype stash 17243 | -7/Data Miner | Received God Mode back door access code from Data Miner 17279 | -7/Data Miner | Entered Proximity Caves 17279 | -6/Proximity Caves | Accompanied by 6 allies 17368 | -6/Proximity Caves | Escorted by Enhanced Grunt 17369 | -6/Proximity Caves | Attracted the attention of an 0b10 outpost 17597 | -6/Proximity Caves | Reached level 20 17698 | -6/Proximity Caves | Build established: Commander-Assassin 18119 | -6/Proximity Caves | Learned Factory stockpile data 18131 | -6/Proximity Caves | Learned Factory stockpile data 18196 | -6/Proximity Caves | Attracted the attention of an 0b10 checkpoint 18241 | -6/Proximity Caves | Entered Factory 18241 | -6/Factory | Accompanied by 7 allies 18756 | -6/Factory | Identified exit to Lower Caves 18756 | -6/Factory | Discovered exit to Lower Caves (range 16) 18787 | -6/Factory | Build established: Commander-Skirmisher 18981 | -6/Factory | Fabricated Exp. Terrain Scanner (x1) 19087 | -6/Factory | Fabricated Imp. Coolant Injector (x2) 19132 | -6/Factory | Local fabrication network quarantined 19640 | -6/Factory | Garrison activated, responded to threat 19665 | -6/Factory | Reached level 21 19704 | -6/Factory | Upgraded with Utility slot (x1) 19779 | -6/Factory | Discovered exit to Lower Caves (range 23) 20106 | -6/Factory | Incoming investigation squad redirected 20167 | -6/Factory | Incoming investigation squad redirected 20286 | -6/Factory | Identified exit to Factory 20286 | -6/Factory | Discovered exit to Factory (range 18) 20495 | -6/Factory | Build established: Hacker-Skirmisher 20859 | -6/Factory | Entered Lower Caves 20859 | -6/Lower Caves | Accompanied by 10 allies 20913 | -6/Lower Caves | Attracted the attention of an 0b10 checkpoint 21298 | -6/Lower Caves | Identified exit to Lower Caves 21585 | -6/Lower Caves | Entered another Lower Caves area 21585 | -6/Lower Caves | Accompanied by 9 allies 21586 | -6/Lower Caves | Encountered a Warlord checkpoint 21599 | -6/Lower Caves | Discovered exit to Factory (range 14) 21876 | -6/Lower Caves | Identified exit to Zion 21876 | -6/Lower Caves | Discovered exit to Zion (range 6) 22115 | -6/Lower Caves | Learned 8 Factory zone layouts 22220 | -6/Lower Caves | Build established: Hacker-Assassin 22418 | -6/Lower Caves | Entered Zion 22418 | -6/Zion | Accompanied by 6 allies 22442 | -6/Zion | Identified exit to Proximity Caves 22442 | -6/Zion | Discovered exit to Proximity Caves (range 29) 22462 | -6/Zion | System corruption cleaned by Quarantine Array 22511 | -6/Zion | Given A8's code to call for help 22542 | -6/Zion | Learned Factory emergency access door positions 22719 | -6/Zion | Learned Factory garrison access intel 22872 | -6/Zion | Build established: Hacker-Mutant 22938 | -6/Zion | Received a visual enhancement algorithm 23038 | -6/Zion | Identified exit to Deep Caves 23038 | -6/Zion | Discovered exit to Deep Caves (range 27) 23291 | -6/Zion | Saw the warning signs outside the Deep Caves entrance 23308 | -6/Zion | Entered Deep Caves 23308 | -6/Deep Caves | Accompanied by 5 allies 23391 | -6/Deep Caves | Attacked by Z-Imprinter 23412 | -6/Deep Caves | Destroyed Z-Imprinter 23416 | -6/Deep Caves | Core integrity fell below 50% 23470 | -6/Deep Caves | Found Prototype Protection 23470 | -6/Deep Caves | Identified Zio. Weapon Casing 23593 | -6/Deep Caves | Z-Facility disabled 23806 | -6/Deep Caves | Build established: Hacker-Gunner 24410 | -6/Deep Caves | Identified exit to Proximity Caves 24410 | -6/Deep Caves | Discovered exit to Proximity Caves (range 7) 24674 | -6/Deep Caves | Entered Proximity Caves 24674 | -5/Proximity Caves | Accompanied by 5 allies 24676 | -5/Proximity Caves | Reached level 22 24711 | -5/Proximity Caves | Learned location of 1 exit from Factory 24767 | -5/Proximity Caves | Attracted the attention of an 0b10 outpost 24814 | -5/Proximity Caves | Destroyed 7 combat bots 25200 | -5/Proximity Caves | Attracted the attention of an 0b10 checkpoint 25248 | -5/Proximity Caves | Spotted B-75 Beast 25316 | -5/Proximity Caves | Destroyed B-75 Beast 25546 | -5/Proximity Caves | Discovered exit to Factory (range 14) 25639 | -5/Proximity Caves | Entered Factory 25639 | -5/Factory | Accompanied by 8 allies 25640 | -5/Factory | Identified exit to Factory 25641 | -5/Factory | Reached level 23 25644 | -5/Factory | Loaded intel: 3 garrison access locations 25677 | -5/Factory | Discovered exit to Factory (range 15) 25849 | -5/Factory | Repaired Imp. Shock Absorption System 25971 | -5/Factory | Identified exit to Extension 25971 | -5/Factory | Discovered exit to Extension (range 18) 26193 | -5/Factory | Discovered exit to Factory (range 7) 26553 | -5/Factory | Fabricated Exp. Terrain Scanner (x1) 26722 | -5/Factory | Fabricated Prc. Energy Filter (x1) 26905 | -5/Factory | Identified exit to Upper Caves 26905 | -5/Factory | Discovered exit to Upper Caves (range 30) 26937 | -5/Factory | Local fabrication network quarantined 26955 | -5/Factory | Incoming investigation squad redirected 26982 | -5/Factory | Incoming investigation squad redirected 27058 | -5/Factory | Discovered exit to Extension (range 30) 27132 | -5/Factory | Destroyed 8 combat bots 27171 | -5/Factory | Reached level 24 27335 | -5/Factory | Discovered exit to Factory (range 16) 27513 | -5/Factory | Build established: Hacker-Assassin 27853 | -5/Factory | Build established: Hacker-Skirmisher 28218 | -5/Factory | Incoming investigation squad redirected 29308 | -5/Factory | Entered Upper Caves 29308 | -5/Upper Caves | Accompanied by 6 allies 29787 | -5/Upper Caves | Identified exit to Upper Caves 29787 | -5/Upper Caves | Discovered exit to Upper Caves (range 21) 29841 | -5/Upper Caves | A Derelict revealed a hidden shortcut to "reach the base" 29844 | -5/Upper Caves | Identified exit to Warlord 29943 | -5/Upper Caves | Entered another Upper Caves area 29943 | -5/Upper Caves | Accompanied by 6 allies 29999 | -5/Upper Caves | Discovered exit to Factory (range 12) 30092 | -5/Upper Caves | Attracted the attention of an 0b10 checkpoint 30369 | -5/Upper Caves | Spotted B-75 Beast 30381 | -5/Upper Caves | Destroyed B-75 Beast 30393 | -5/Upper Caves | Discovered exit to Warlord (range 26) 30469 | -5/Upper Caves | Entered Warlord 30469 | -5/Warlord | Accompanied by 6 allies 30504 | -5/Warlord | Identified exit to Proximity Caves 30504 | -5/Warlord | Discovered exit to Proximity Caves (range 22) 30606 | -5/Warlord | Met Warlord 30621 | -5/Warlord | Warlord's base attacked by MAIN.C 30655 | -5/Warlord | Upgraded with Weapon slot (x1) 30725 | -5/Warlord | Found Prototype Energy Gun 30725 | -5/Warlord | Identified Vortex Rail 30728 | -5/Warlord | Found Prototype Piercing Weapon 30728 | -5/Warlord | Identified Vortex Lance 30872 | -5/Warlord | Found Prototype Energy Gun 30872 | -5/Warlord | Identified Plasma Storm 30893 | -5/Warlord | Build established: Hacker-Assassin 30971 | -5/Warlord | Warlord forces counterattacked 30974 | -5/Warlord | Opened Warlord's prototype stash 30979 | -5/Warlord | Found Prototype Reactor 30979 | -5/Warlord | Identified Vortex Chain Reactor 30986 | -5/Warlord | Found Prototype Device 30986 | -5/Warlord | Identified Exp. Cloaking Device 31021 | -5/Warlord | Found Prototype Hackware 31021 | -5/Warlord | Identified System Mapper 31026 | -5/Warlord | Found Prototype Processor 31026 | -5/Warlord | Identified Exp. Target Analyzer 31222 | -5/Warlord | Spotted Striker 31227 | -5/Warlord | Spotted Striker 31233 | -5/Warlord | Reached level 25 31239 | -5/Warlord | Destroyed Striker 31239 | -5/Warlord | Spotted Executioner 31242 | -5/Warlord | Destroyed Executioner 31245 | -5/Warlord | Destroyed Striker 31280 | -5/Warlord | Destroyed 14 combat bots 31328 | -5/Warlord | Spotted Striker 31341 | -5/Warlord | Destroyed Striker 31371 | -5/Warlord | Destroyed 16 combat bots 31426 | -5/Warlord | Build established: Wizard-Assassin 31462 | -5/Warlord | Destroyed 15 combat bots 31521 | -5/Warlord | Spotted Striker 31522 | -5/Warlord | Spotted Striker 31524 | -5/Warlord | Destroyed Striker 31536 | -5/Warlord | Destroyed Striker 31557 | -5/Warlord | Destroyed 20 combat bots 31621 | -5/Warlord | Spotted Executioner 31630 | -5/Warlord | Destroyed Executioner 31657 | -5/Warlord | Destroyed 17 combat bots 31721 | -5/Warlord | Spotted Striker 31722 | -5/Warlord | Spotted Striker 31722 | -5/Warlord | Spotted Striker 31722 | -5/Warlord | Spotted B-75 Beast 31722 | -5/Warlord | Spotted Executioner 31722 | -5/Warlord | Spotted B-86 Titan 31724 | -5/Warlord | Destroyed B-75 Beast 31725 | -5/Warlord | Destroyed Striker 31727 | -5/Warlord | Build established: Wizard-Executioner 31727 | -5/Warlord | Destroyed Striker 31741 | -5/Warlord | Destroyed Striker 31741 | -5/Warlord | Destroyed Executioner 31753 | -5/Warlord | Destroyed B-86 Titan 31774 | -5/Warlord | Destroyed 17 combat bots 31821 | -5/Warlord | Spotted Executioner 31821 | -5/Warlord | Spotted Executioner 31821 | -5/Warlord | Reached level 26 31824 | -5/Warlord | Destroyed Executioner 31830 | -5/Warlord | Destroyed Executioner 31849 | -5/Warlord | Found Prototype Device 31849 | -5/Warlord | Identified Adv. Kinecellerator 31854 | -5/Warlord | Destroyed 15 combat bots 31856 | -5/Warlord | Found Prototype Processor 31856 | -5/Warlord | Identified Exp. Core Analyzer 31867 | -5/Warlord | Upgraded with Utility slot (x1) 31921 | -5/Warlord | Spotted Executioner 31921 | -5/Warlord | Spotted Striker 31922 | -5/Warlord | Spotted Striker 31927 | -5/Warlord | Destroyed Executioner 31938 | -5/Warlord | Destroyed Striker 31941 | -5/Warlord | Destroyed Striker 31962 | -5/Warlord | Destroyed 17 combat bots 32021 | -5/Warlord | Spotted Executioner 32027 | -5/Warlord | Destroyed Executioner 32055 | -5/Warlord | Destroyed 16 combat bots 32121 | -5/Warlord | Spotted B-75 Beast 32121 | -5/Warlord | Spotted Executioner 32121 | -5/Warlord | Spotted B-86 Titan 32124 | -5/Warlord | Destroyed Executioner 32127 | -5/Warlord | Destroyed B-75 Beast 32152 | -5/Warlord | Destroyed B-86 Titan 32173 | -5/Warlord | Destroyed 15 combat bots 32228 | -5/Warlord | Spotted Executioner 32228 | -5/Warlord | Spotted Striker 32239 | -5/Warlord | Destroyed Executioner 32265 | -5/Warlord | Destroyed 16 combat bots 32323 | -5/Warlord | Spotted Striker 32330 | -5/Warlord | Destroyed Striker 32351 | -5/Warlord | Destroyed 16 combat bots 32421 | -5/Warlord | Spotted Striker 32421 | -5/Warlord | Spotted Executioner 32421 | -5/Warlord | Spotted Striker 32421 | -5/Warlord | Destroyed Executioner 32424 | -5/Warlord | Destroyed Striker 32430 | -5/Warlord | Destroyed Striker 32470 | -5/Warlord | Destroyed 20 combat bots 32522 | -5/Warlord | Spotted Executioner 32534 | -5/Warlord | Destroyed Executioner 32557 | -5/Warlord | Destroyed 15 combat bots 32621 | -5/Warlord | Spotted Striker 32621 | -5/Warlord | Spotted Executioner 32624 | -5/Warlord | Reached level 27 32627 | -5/Warlord | Destroyed Executioner 32630 | -5/Warlord | Destroyed Striker 32660 | -5/Warlord | Destroyed 18 combat bots 32721 | -5/Warlord | Spotted Executioner 32721 | -5/Warlord | Spotted Striker 32731 | -5/Warlord | Destroyed Executioner 32737 | -5/Warlord | Destroyed Striker 32761 | -5/Warlord | Destroyed 17 combat bots 32821 | -5/Warlord | Spotted Striker 32821 | -5/Warlord | Spotted Striker 32821 | -5/Warlord | Spotted Striker 32825 | -5/Warlord | Destroyed Striker 32833 | -5/Warlord | Destroyed Striker 32836 | -5/Warlord | Destroyed Striker 32857 | -5/Warlord | Destroyed 18 combat bots 32922 | -5/Warlord | Spotted Striker 32922 | -5/Warlord | Spotted Executioner 32922 | -5/Warlord | Spotted Executioner 32922 | -5/Warlord | Spotted Executioner 32927 | -5/Warlord | Destroyed Executioner 32927 | -5/Warlord | Destroyed Executioner 32929 | -5/Warlord | Core integrity fell below 50% 32930 | -5/Warlord | Destroyed Executioner 32933 | -5/Warlord | Destroyed Striker 32968 | -5/Warlord | Destroyed 21 combat bots 33021 | -5/Warlord | Spotted Striker 33042 | -5/Warlord | Destroyed Striker 33066 | -5/Warlord | Destroyed 16 combat bots 33123 | -5/Warlord | Spotted Striker 33130 | -5/Warlord | Destroyed Striker 33170 | -5/Warlord | Destroyed 16 combat bots 33221 | -5/Warlord | Spotted B-75 Beast 33221 | -5/Warlord | Spotted B-86 Titan 33221 | -5/Warlord | Destroyed B-75 Beast 33227 | -5/Warlord | Destroyed B-86 Titan 33251 | -5/Warlord | Destroyed 13 combat bots 33321 | -5/Warlord | Spotted Striker 33321 | -5/Warlord | Spotted Striker 33324 | -5/Warlord | Destroyed Striker 33328 | -5/Warlord | Destroyed Striker 33371 | -5/Warlord | Destroyed 18 combat bots 33421 | -5/Warlord | Spotted B-86 Titan 33421 | -5/Warlord | Spotted Executioner 33421 | -5/Warlord | Spotted B-75 Beast 33421 | -5/Warlord | Spotted Striker 33428 | -5/Warlord | Destroyed B-86 Titan 33430 | -5/Warlord | Destroyed B-75 Beast 33430 | -5/Warlord | Destroyed Executioner 33430 | -5/Warlord | Destroyed Striker 33457 | -5/Warlord | Destroyed 14 combat bots 33521 | -5/Warlord | Spotted Executioner 33524 | -5/Warlord | Spotted Striker 33524 | -5/Warlord | Spotted B-86 Titan 33524 | -5/Warlord | Spotted B-75 Beast 33525 | -5/Warlord | Destroyed B-86 Titan 33528 | -5/Warlord | Destroyed Striker 33536 | -5/Warlord | Destroyed B-75 Beast 33541 | -5/Warlord | Destroyed Executioner 33563 | -5/Warlord | Destroyed 16 combat bots 33621 | -5/Warlord | Spotted B-86 Titan 33621 | -5/Warlord | Spotted Striker 33621 | -5/Warlord | Spotted Striker 33621 | -5/Warlord | Spotted B-75 Beast 33621 | -5/Warlord | Spotted Striker 33627 | -5/Warlord | Destroyed Striker 33637 | -5/Warlord | Destroyed Striker 33640 | -5/Warlord | Destroyed Striker 33649 | -5/Warlord | Destroyed B-75 Beast 33670 | -5/Warlord | Destroyed 15 combat bots 33710 | -5/Warlord | Entered Proximity Caves 33710 | -4/Proximity Caves | Accompanied by 2 allies 33821 | -4/Proximity Caves | Learned Research security intel 33874 | -4/Proximity Caves | Spotted B-86 Titan 33900 | -4/Proximity Caves | Destroyed B-86 Titan 34025 | -4/Proximity Caves | Learned location of 1 exit from Research 34037 | -4/Proximity Caves | Attracted the attention of an 0b10 checkpoint 34235 | -4/Proximity Caves | Discovered exit to Factory (range 19) 34383 | -4/Proximity Caves | Attracted the attention of an 0b10 outpost 34388 | -4/Proximity Caves | Reached level 28 34449 | -4/Proximity Caves | Destroyed 15 combat bots 34576 | -4/Proximity Caves | Entered Factory 34576 | -4/Factory | Accompanied by 3 allies 34607 | -4/Factory | Adv. System Shield fried by hacking feedback 34628 | -4/Factory | Incoming investigation squad redirected 34654 | -4/Factory | Garrison activated, responded to threat 34748 | -4/Factory | Found Quantum Capacitor 34979 | -4/Factory | P-70 Sage assimilated allied Y-64 Sentinel 35141 | -4/Factory | Identified exit to Upper Caves 35141 | -4/Factory | Discovered exit to Upper Caves (range 13) 35246 | -4/Factory | Identified exit to Research 35246 | -4/Factory | Discovered exit to Research (range 17) 35255 | -4/Factory | Build established: Hacker-Mutant 35268 | -4/Factory | Allied Derelicts emerged from ambush trap array 35482 | -4/Factory | Garrison activated, responded to threat 35802 | -4/Factory | Fabricated Exp. Signal Interpreter (x1) 35890 | -4/Factory | Discovered exit to Research (range 19) 35959 | -4/Factory | Spotted B-86 Titan 35963 | -4/Factory | Destroyed B-86 Titan 35976 | -4/Factory | Spotted B-86 Titan 35980 | -4/Factory | Destroyed B-86 Titan 36190 | -4/Factory | Discovered exit to Research (range 30) 36236 | -4/Factory | Incoming investigation squad redirected 36403 | -4/Factory | Discovered exit to Upper Caves (range 28) 36677 | -4/Factory | Fabricated Centrium Wheel (x2) 37207 | -4/Factory | Fabricated Exp. Coolant Injector (x1) 37912 | -4/Factory | Reached level 29 38251 | -4/Factory | Fabricated O-24 Administrator? 38273 | -4/Factory | Local fabrication network quarantined 38289 | -4/Factory | Fabricated M-28 Smith? 38537 | -4/Factory | Entered Upper Caves 38537 | -4/Upper Caves | Accompanied by 13 allies 38725 | -4/Upper Caves | Encountered a Warlord checkpoint 38744 | -4/Upper Caves | Attacked by a delusional Derelict stockpiling Unaware 38835 | -4/Upper Caves | Attracted the attention of an 0b10 checkpoint 38960 | -4/Upper Caves | Identified exit to Upper Caves 38960 | -4/Upper Caves | Discovered exit to Upper Caves (range 28) 39025 | -4/Upper Caves | Entered another Upper Caves area 39025 | -4/Upper Caves | Accompanied by 17 allies 39038 | -4/Upper Caves | Discovered exit to Research (range 10) 39171 | -4/Upper Caves | Found Alien Artifact 39171 | -4/Upper Caves | Identified Dimensional Node Initializer 39171 | -4/Upper Caves | Initialized slip node 39299 | -4/Upper Caves | Learned Research garrison access intel 39418 | -4/Upper Caves | Encountered a Warlord checkpoint 39421 | -4/Upper Caves | Identified exit to Zhirov 39421 | -4/Upper Caves | Discovered exit to Zhirov (range 28) 39493 | -4/Upper Caves | Attracted the attention of an 0b10 checkpoint 39535 | -4/Upper Caves | Entered Zhirov 39535 | -4/Zhirov | Accompanied by 17 allies 39535 | -4/Zhirov | Identified exit to Proximity Caves 39535 | -4/Zhirov | Discovered exit to Proximity Caves (range 3) 39561 | -4/Zhirov | Met Zhirov 39587 | -4/Zhirov | Learned location of Command (-1) 39608 | -4/Zhirov | Zhirov requested help retrieving the SGEMP Prototype 39630 | -4/Zhirov | Found Alien Artifact 39630 | -4/Zhirov | Identified Transdimensional Reconstructor 39630 | -4/Zhirov | Warped through subspace 39684 | -4/Zhirov | Found Alien Artifact 39684 | -4/Zhirov | Identified Integrated Reactor 39684 | -4/Zhirov | Installed Integrated Reactor, increased core energy generation (+2%) 39760 | -4/Zhirov | Entered Proximity Caves 39760 | -3/Proximity Caves | Accompanied by 17 allies 40086 | -3/Proximity Caves | Discovered exit to Research (range 17) 40106 | -3/Proximity Caves | Attracted the attention of an 0b10 base 40117 | -3/Proximity Caves | Learned 6 Lower Caves zone layouts 40117 | -3/Proximity Caves | Learned 6 Upper Caves zone layouts 40117 | -3/Proximity Caves | Learned Armory trap positions 40117 | -3/Proximity Caves | Learned Armory emergency access door positions 40117 | -3/Proximity Caves | Learned Extension terminal intel 40130 | -3/Proximity Caves | Destroyed 7 combat bots 40143 | -3/Proximity Caves | Entered Research 40143 | -3/Research | Accompanied by 17 allies 40144 | -3/Research | Identified exit to Armory 40144 | -3/Research | Identified exit to Testing 40145 | -3/Research | Identified exit to Research 40147 | -3/Research | Loaded intel: 3 garrison access locations 40179 | -3/Research | Incoming investigation squad redirected 40229 | -3/Research | Incoming investigation squad redirected 40304 | -3/Research | Incoming investigation squad redirected 40308 | -3/Research | Garrison activated, responded to threat 40314 | -3/Research | Reached level 30 40359 | -3/Research | Destroyed 9 combat bots 40507 | -3/Research | Incoming investigation squad redirected 40643 | -3/Research | First assault squad dispatched 40655 | -3/Research | P-80 Master assimilated allied 3A-ZDW(l) 40667 | -3/Research | Incoming assault squad redirected 40766 | -3/Research | Incoming investigation squad redirected 40866 | -3/Research | Destroyed 10 combat bots 40949 | -3/Research | Destroyed 12 combat bots 41159 | -3/Research | Incoming investigation squad redirected 41409 | -3/Research | Incoming assault squad redirected 41475 | -3/Research | Found Exp. Thermal Shield 41545 | -3/Research | Destroyed 7 combat bots 41664 | -3/Research | Spotted B-86 Titan 41667 | -3/Research | Destroyed B-86 Titan 41794 | -3/Research | Reached level 31 41800 | -3/Research | Fabricated EM Dispersion Field? 41872 | -3/Research | Destroyed 12 combat bots 42004 | -3/Research | Destroyed 14 combat bots 42189 | -3/Research | High security lockdown imminent 42214 | -3/Research | Fabricated Beam Splitter? 42269 | -3/Research | High security lockdown engaged 42450 | -3/Research | Entered Armory 42451 | -3/Armory | Loaded intel: 43 trap records 42465 | -3/Armory | Destroyed 11 combat bots 42700 | -3/Armory | First assault squad dispatched 42728 | -3/Armory | Incoming assault squad redirected 42817 | -3/Armory | Fabricated Hdn. Centrium Wheel? 42841 | -3/Armory | Fabricated Exp. Shock Absorption System (x1) 42944 | -3/Armory | Fabricated Imp. Particle Accelerator? 42977 | -3/Armory | Incoming assault squad redirected 43105 | -3/Armory | Fabricated Adv. Hardlight Generator? 43124 | -3/Armory | Fabricated Hdn. Centrium Wheel? 43340 | -3/Armory | Discovered exit to Research (range 25) 43408 | -3/Armory | Fabricated O-32 Director? 43633 | -3/Armory | Fabricated O-32 Director? 43804 | -3/Armory | Incoming investigation squad redirected 43882 | -3/Armory | Fabricated O-32 Director? 43890 | -3/Armory | Reached level 32 43896 | -3/Armory | Upgraded with Utility slot (x1) 43946 | -3/Armory | Local fabrication network quarantined 43978 | -3/Armory | Incoming assault squad redirected 44164 | -3/Armory | Fabricated Adv. Particle Accelerator (x1) 44427 | -3/Armory | Destroyed 11 combat bots 44544 | -3/Armory | Destroyed 7 combat bots 44565 | -3/Armory | Incoming assault squad redirected 44620 | -3/Armory | Destroyed 7 combat bots 44657 | -3/Armory | High security lockdown imminent 44675 | -3/Armory | Assisted by bots powering up and referring to "LRC-V3" 44731 | -3/Armory | Identified exit to Lab 44731 | -3/Armory | Discovered exit to Lab (range 27) 44737 | -3/Armory | High security lockdown engaged 44740 | -3/Armory | Discovered exit to Research (range 12) 44766 | -3/Armory | P-80 Master assimilated allied Enforcer 8a 44810 | -3/Armory | Destroyed 14 combat bots 44818 | -3/Armory | Entered Lab 44818 | -3/Lab | Accompanied by 1 ally 44818 | -3/Lab | Discovered exit to Research (range 9) 44833 | -3/Lab | Unable to decrypt terminal 44833 | -3/Lab | Opened the door to a hidden lab 44834 | -3/Lab | Gained access to the hidden lab's interior 44843 | -3/Lab | Detected by scanners 44850 | -3/Lab | Confronted by A5 44878 | -3/Lab | Destroyed A5 44923 | -3/Lab | Found Prototype Special Weapon 44923 | -3/Lab | Identified Gui. Remote Datajack 45010 | -3/Lab | Unable to decrypt terminal 45012 | -3/Lab | Unable to decrypt terminal 45083 | -3/Lab | Found Alien Artifact 45083 | -3/Lab | Identified Core Expander 45083 | -3/Lab | Installed Core Expander, added new Weapon slot 45094 | -3/Lab | Found Integrated Reactor 45094 | -3/Lab | Installed Integrated Reactor, increased core energy generation (+2%) 45105 | -3/Lab | Found Transdimensional Reconstructor 45105 | -3/Lab | Warped through subspace 45207 | -3/Lab | Found Prototype Protection 45207 | -3/Lab | Identified Exp. Powered Armor 45212 | -3/Lab | Found Prototype Energy Gun 45212 | -3/Lab | Identified Hyp. EM Gauss Rifle 45216 | -3/Lab | Found Prototype Energy Gun 45216 | -3/Lab | Identified Tachyon Dispersion Ray 45273 | -3/Lab | Found Prototype Hackware 45273 | -3/Lab | Identified Quantum Router 45309 | -3/Lab | Unable to decrypt terminal 45318 | -3/Lab | Entered Research 45318 | -2/Research | Warlord forces began assault on 0b10 45320 | -2/Research | Reached level 33 45385 | -2/Research | Identified exit to Access 45385 | -2/Research | Discovered exit to Access (range 29) 45394 | -2/Research | Upgraded with Power slot (x1) 45428 | -2/Research | Research machine network offline 45502 | -2/Research | Borebot progress halted 45513 | -2/Research | Identified exit to Quarantine 45513 | -2/Research | Discovered exit to Quarantine (range 27) 45560 | -2/Research | Borebot progress halted 45623 | -2/Research | Met up with Warlord 45636 | -2/Research | Hacked God Mode, triggering a massive explosion 45638 | -2/Research | Borebot progress halted 45639 | -2/Research | System corruption reached 10% 45639 | -2/Research | System corruption reached 30% 45680 | -2/Research | Spotted Tracker 45687 | -2/Research | Destroyed Tracker 45688 | -2/Research | Spotted Tracker 45694 | -2/Research | Destroyed Tracker 45699 | -2/Research | Spotted Combat Programmer 45712 | -2/Research | Spotted Combat Programmer 45717 | -2/Research | Destroyed Combat Programmer 45739 | -2/Research | Core integrity fell below 50% 45748 | -2/Research | Spotted Striker 45752 | -2/Research | Destroyed Combat Programmer 45756 | -2/Research | Warlord destroyed during the assault 45764 | -2/Research | Destroyed Striker 45787 | -2/Research | Build established: Wizard-Mutant 45973 | -2/Research | Entered Access 45974 | -1/Access | Core integrity fell below 50% 45975 | -1/Access | Reached level 34 46189 | -1/Access | Incoming investigation squad redirected 46233 | -1/Access | Incoming investigation squad redirected 46295 | -1/Access | Identified exit to Command 46295 | -1/Access | Discovered exit to Command (range 28) 46317 | -1/Access | Spotted B-99 Colossus 46340 | -1/Access | Destroyed B-99 Colossus 46453 | -1/Access | Incoming investigation squad redirected 46622 | -1/Access | Reached level 35 46638 | -1/Access | Intercept squad dispatched 46646 | -1/Access | Spotted Tracker 46646 | -1/Access | Spotted Tracker 46649 | -1/Access | Destroyed Tracker 46653 | -1/Access | Destroyed Tracker 46654 | -1/Access | Spotted Combat Programmer 46659 | -1/Access | Destroyed Combat Programmer 46688 | -1/Access | Spotted Combat Programmer 46700 | -1/Access | Destroyed Combat Programmer 46760 | -1/Access | Intercept squad dispatched 46760 | -1/Access | First assault squad dispatched 46764 | -1/Access | Spotted Tracker 46766 | -1/Access | Spotted Tracker 46767 | -1/Access | Spotted Tracker 46775 | -1/Access | Destroyed Tracker 46778 | -1/Access | Destroyed Tracker 46779 | -1/Access | Spotted Combat Programmer 46779 | -1/Access | Spotted Combat Programmer 46784 | -1/Access | Combat Programmer assimilated allied G-73 Enforcer 46785 | -1/Access | Destroyed Combat Programmer 46788 | -1/Access | Incoming assault squad redirected 46791 | -1/Access | Allies destroyed Tracker 46798 | -1/Access | Destroyed Combat Programmer 46806 | -1/Access | Spotted Combat Programmer 46817 | -1/Access | Destroyed Combat Programmer 46838 | -1/Access | Found EMDS 46842 | -1/Access | Destroyed 7 combat bots 46870 | -1/Access | Incoming investigation squad redirected 47012 | -1/Access | Fabricated Singularity Reactor? 47056 | -1/Access | Spotted B-99 Colossus 47082 | -1/Access | Destroyed B-99 Colossus 47140 | -1/Access | Quantum Router fried by hacking feedback 47162 | -1/Access | Incoming investigation squad redirected 47163 | -1/Access | Intercept squad dispatched 47169 | -1/Access | Spotted Tracker 47170 | -1/Access | Spotted Tracker 47171 | -1/Access | Spotted Tracker 47172 | -1/Access | Spotted Tracker 47183 | -1/Access | Destroyed Tracker 47184 | -1/Access | Destroyed Tracker 47184 | -1/Access | Destroyed Tracker 47194 | -1/Access | Destroyed Tracker 47199 | -1/Access | Entered Command 47201 | -1/Command | Reached level 36 47282 | -1/Command | Destroyed 16 combat bots 47365 | -1/Command | Found Exp. System Shield 47432 | -1/Command | Incoming investigation squad redirected 47446 | -1/Command | Disengaged cave seal 47475 | -1/Command | First assault squad dispatched 47675 | -1/Command | Destroyed 7 combat bots 47709 | -1/Command | Phase Generator disabled 47863 | -1/Command | Destroyed 8 combat bots 47930 | -1/Command | Identified exit to Surface 47930 | -1/Command | Discovered exit to Surface (range 24) 47956 | -1/Command | Build established: Wizard-Skirmisher 48064 | -1/Command | System Mapper fried by hacking feedback 48197 | -1/Command | Reached level 37 48277 | -1/Command | High security lockdown imminent 48357 | -1/Command | High security lockdown engaged 48399 | -1/Command | Reached level 38 48460 | -1/Command | Destroyed 138 combat bots 48485 | -1/Command | Spotted Investigator 48485 | -1/Command | Scanned by Researcher 48486 | -1/Command | Destroyed Investigator 48493 | -1/Command | Destroyed Striker 48550 | -1/Command | Destroyed 35 combat bots 48617 | -1/Command | Found Prototype Launcher 48617 | -1/Command | Identified Containment Facilitator 48773 | -1/Command | Destroyed Executioner 48773 | -1/Command | Spotted Striker 48777 | -1/Command | Spotted Striker 48777 | -1/Command | Spotted Executioner 48781 | -1/Command | Destroyed Striker 48782 | -1/Command | Destroyed Striker 48783 | -1/Command | Destroyed Executioner 48810 | -1/Command | Destroyed 10 combat bots 48895 | -1/Command | Spotted Executioner 48895 | -1/Command | Spotted Striker 48896 | -1/Command | Spotted Striker 48896 | -1/Command | Spotted Striker 48896 | -1/Command | Spotted Striker 48898 | -1/Command | Destroyed Striker 48899 | -1/Command | Destroyed Executioner 48903 | -1/Command | Destroyed Striker 48905 | -1/Command | Spotted Striker 48906 | -1/Command | Destroyed Striker 48907 | -1/Command | Destroyed Striker 48910 | -1/Command | Spotted Executioner 48913 | -1/Command | Destroyed Striker 48914 | -1/Command | Destroyed Executioner 48919 | -1/Command | Spotted Executioner 48927 | -1/Command | Spotted Executioner 48930 | -1/Command | Destroyed Executioner 48931 | -1/Command | Spotted Striker 48932 | -1/Command | Spotted Striker 48933 | -1/Command | Spotted Striker 48933 | -1/Command | Destroyed Executioner 48935 | -1/Command | Destroyed Striker 48943 | -1/Command | Destroyed Striker 48944 | -1/Command | Destroyed Striker 48971 | -1/Command | Destroyed 36 combat bots 49106 | -1/Command | Spotted Executioner 49120 | -1/Command | Destroyed Executioner 49151 | -1/Command | Reached level 39 49289 | -1/Command | Destroyed 135 combat bots 49501 | -1/Command | Spotted M Guard 49503 | -1/Command | Spotted M Guard 49503 | -1/Command | Spotted Combat Programmer 49503 | -1/Command | Spotted Combat Programmer 49509 | -1/Command | Destroyed Combat Programmer 49512 | -1/Command | Destroyed Combat Programmer 49517 | -1/Command | Destroyed M Guard 49533 | -1/Command | Destroyed M Guard 49533 | -1/Command | Destroyed all MAIN.C guards 49609 | -1/Command | Met MAIN.C 49612 | -1/Command | 0b10 Conduit disabled 49680 | -1/Command | Destroyed MAIN.C Shell 49682 | -1/Command | MAIN.C activated Command garrisons 49833 | -1/Command | Core integrity fell below 20% 49916 | -1/Command | Spotted B-99 Colossus 49919 | -1/Command | Build established: Machinist-Executioner 49949 | -1/Command | Destroyed B-99 Colossus 50120 | -1/Command | Found Exp. Target Analyzer 50411 | -1/Command | Build established: Generator-Mutant 50683 | -1/Command | Discovered exit to Surface (range 13) 50894 | -1/Command | Spotted B-99 Colossus 50909 | -1/Command | Destroyed B-99 Colossus 51151 | -1/Command | Found Prototype Launcher 51151 | -1/Command | Identified Gui. Micro-nuke Launcher 51237 | -1/Command | Destroyed MAIN.C 51336 | *** | Establishing 0b11! Last Messages --------------- 51107_ Destroyed Antigrav System. 51108_ Destroyed Adv. Visual Processing Unit. 51109_ W-44 Eye destroyed. 51138_ Destroyed Exp. Powered Armor. 51150_ Dropped Hvy. Machine Gun. 51151_ Dropped Enh. Nova Cannon. 51151_ Acquired Prototype Launcher. 51151_ Identified Gui. Micro-nuke Launcher. 51153_ Dropped Gui. Micro-nuke Launcher. 51155_ Acquired Enh. Nova Cannon. 51159_ MAIN.C suffers critical hit. 51159_ Destroyed Beam Splitter. 51201_ Destroyed Cld. Antigrav System. 51216_ Destroyed Wheel. 51216_ K-01 Serf destroyed. 51226_ Destroyed Antimissile System. 51226_ Destroyed Cld. Antigrav System. 51237_ MAIN.C: "I hope you know you're still going to DIE HERE WITH ME!" 51237_ MAIN.C destroyed. 51249_ Used Protomatter to restore part integrity (+238, depleted) Map ----- +----------------------------------------------------+ | ####### " ########### ############ | | % ####### #####+########### "" ############ | | ####### ## ###### """" ############ | | ####### ## ###### """" # ######### | | ####### ## """" ###### "" ## ######### | | ##### # """" + # ## ######### | | ! # """" ###### ## ######### | | ! + """" ##########+###### ######### | | = # ###### ################ | | ##### # ###### # ] ####### | | ########################### # ####### | | ####!= #### # # "" ####### | | ####!] # # # # """" ####### | | ####=] #### # # """" ####### | | #### #### + + "" ####### | | #### #### # # ####### | | #### # # # # ! ####### | | #### !#### # # ####### | | #### #### #### + ####### | | ########+##################### ################ | | =* #################### # ####### | | % =* #################### # ####### | | #################### # ####### | | ############# # ####### | | ############# + ####### | | ""Y"" ############# @ ##### # "" #####"" | | """"" ############# ##### # """" #####"" | | ################### # """" #####"" | | *%! ################### # "" #####"" | | = #################### ##############" | | "# ## ########## ##############"" | | # # ########## ##############"" | | ^ # """" ########## ############## " | | # !# """" ########## ### ##### " | | # !/# """" ########## ### ##### " | | " # """" ########## ### #####"" | | +] !# ########## ### #####"" | | ###### ########## ### ####" | | ########"+############### ### ####" | | #"### ############# "######+###""" | | !! R k R | | !! k | | ! | | #### ###"# ######"+#########+## ###### | | ############# ##### ## # ###### | | ############# ##### ## # ###### | | ############# ##### "" ## # ######## | | ############# ##### """" ## # ######## | | ############# ##### """" ## # ######## | | # # # ### "" ## # ######## | +----------------------------------------------------+ Best States ------------- Heat Dissipation 199 Coolant Potential 240 Energy Generation 115 Energy Capacity 1100 Matter Stores 300 Matter Capacity 300 Sight Range 16 Robot Scan Range 30 Terrain Scan Range 30 Terrain Scan Density 410 Power Amplification 20 Armor Coverage 1800 Resistance: KI 75 Resistance: TH 100 Resistance: EX 100 Resistance: EM 100 Resistance: I 35 Resistance: S 35 Resistance: P 35 Propulsion Shielding 33 Weapon Cycling 20 Phase Shifting 5 Evasion (%) 50 Target Analysis 12 Core Analysis 15 Energy Filtering 50 Particle Charging 50 Kinecelleration 50 Offensive Hacking 45 Defensive Hacking 30 Item Schematics ----------------- Hcp. Battery | -10/Materials | Hacked Wheel | -10/Materials | Hacked ECM Suite | -10/Materials | Hacked Datajack | -9/Materials | Scanalyzed Com. Wheel | -9/Materials | Extracted Hvy. Hammer | -9/Materials | Scanalyzed Exp. Sensor Array | -9/Materials | Scanalyzed Imp. Terrain Scanner | -9/Materials | Scanalyzed Seismic Analyzer | -9/Materials | Extracted Arm. Wheel | -9/Materials | Hacked Imp. Signal Interpreter | -9/Materials | Hacked Axe | -8/Materials | Scanalyzed Particle Charger | -8/Materials | Scanalyzed Adv. Terrain Scanner | -8/Materials | Scanalyzed Imp. EM Shotgun | -8/Materials | Scanalyzed Nuclear Core | -8/Materials | Extracted Hacking Suite | -8/Materials | Hacked System Shield | -8/Materials | Hacked Adv. Signal Interpreter | -8/Materials | Hacked Imp. Datajack | -8/Materials | Scanalyzed Phase Shifter | -8/Materials | Scanalyzed Beamcaster | -8/Materials | Scanalyzed Shock Bomb Launcher | -8/Materials | Scanalyzed Minigun | -8/Materials | Scanalyzed Disposable Heat Sink | -8/Materials | Scanalyzed Lgt. Nuclear Core | -8/Materials | Scanalyzed Ion Cannon | -8/Materials | Extracted Shock Rifle | -8/Materials | Extracted Transmission Jammer | -8/Materials | Extracted Imp. Heat Sink | -8/Storage | Hacked EM Shield | -8/Storage | Hacked Lrn. Terrain Scanner | -8/Storage | Hacked Imp. Particle Charger | -7/Factory | Hacked Hvy. Reactive Plating | -7/Factory | Hacked Imp. System Shield | -7/Factory | Hacked Imp. System Backup Module | -7/Factory | Hacked Imp. Spread Laser | -7/Factory | Hacked Imp. Hacking Suite | -7/Factory | Hacked Arm. Medium Treads | -7/Factory | Hacked Imp. Focal Shield | -7/Factory | Hacked Great Axe | -7/Factory | Scanalyzed Energy Filter | -7/Factory | Scanalyzed Hvy. Missile Launcher | -7/Factory | Scanalyzed Weapon Cycler | -7/Factory | Scanalyzed Remote Datajack | -7/Factory | Scanalyzed Gauss Rifle | -7/Factory | Extracted Kinecellerator | -7/Factory | Extracted Force Rifle | -7/Factory | Hacked Enh. Gauss Cannon | -7/Factory | Hacked Cld. Deuterium Engine | -7/Factory | Scanalyzed Melee Analysis Suite | -7/Factory | Extracted Coolant Injector | -7/Factory | Hacked Linear Gravjet | -7/Factory | Hacked Med. Reactive Plating | -7/Factory | Hacked Med. Reflective Plating | -7/Factory | Hacked Imp. Coolant Injector | -7/Factory | Hacked Flak Gun | -7/Factory | Extracted Proton Missile Launcher | -7/Factory | Extracted Imp. Trap Extractor | -7/Factory | Extracted Lrn. Tractor Beam | -7/Factory | Extracted Med. Battery | -7/Factory | Extracted Imp. Light Armor Plating | -7/Factory | Extracted Salvage Targeting Computer | -7/Factory | Extracted Imp. Targeting Computer | -7/Factory | Extracted Hrd. Light Armor Plating | -7/Factory | Extracted Med. Treads | -7/Factory | Extracted Weight Redist. System | -7/Factory | Extracted Cesium-ion Thruster | -7/Factory | Extracted Adv. Plasma Cannon | -7/Factory | Hacked Combat Drone Bay | -7/Data Miner | Free Lgt. Regenerative Plating | -7/Data Miner | Free Triangulator | -7/Data Miner | Free Exp. Terrain Scanner | -7/Data Miner | Free Exp. Terrain Scan Processor | -7/Data Miner | Free Cloaking Device | -7/Data Miner | Free Mni. Smartbomb Launcher | -7/Data Miner | Free Kinetic Spear | -7/Data Miner | Free Exp. Signal Interpreter | -6/Factory | Hacked Imp. Energy Well | -6/Factory | Scanalyzed Sml. Battery | -6/Factory | Extracted Imp. ECM Suite | -6/Factory | Extracted Imp. Thermal Generator | -6/Factory | Extracted Adv. Melee Analysis Suite | -6/Factory | Extracted Imp. Medium Armor Plating | -6/Factory | Extracted Imp. Weapon Cycler | -6/Factory | Hacked Imp. Thermal Shield | -6/Factory | Hacked Prc. Energy Filter | -5/Factory | Hacked Imp. Remote Datajack | -5/Factory | Scanalyzed Imp. Shock Absorption System | -5/Factory | Scanalyzed Smartbomb Launcher | -5/Factory | Extracted Shock Absorption System | -5/Factory | Extracted Nuclear Pulse Array | -5/Factory | Extracted Nuclear Pulse Thruster | -5/Factory | Extracted Imp. Launcher Guidance Computer | -5/Factory | Extracted Adv. Particle Charger | -5/Factory | Hacked Quantum Capacitor | -5/Factory | Hacked Exp. System Shield | -5/Factory | Hacked Reaction Control System | -5/Factory | Hacked Adv. Hacking Suite | -5/Factory | Hacked Adv. System Shield | -5/Factory | Hacked Adv. Coolant Injector | -5/Factory | Hacked Cld. Fission Core | -5/Factory | Hacked Adv. Thermal Shield | -5/Factory | Hacked Micro-nuke Launcher | -5/Factory | Hacked Centrium Wheel | -4/Factory | Hacked Matter Neutralizer | -4/Factory | Hacked Exp. Coolant Injector | -4/Factory | Scanalyzed Assault Drone Bay | -4/Zhirov | Free Exp. Heat Sink | -4/Zhirov | Free Exp. Optical Array | -4/Zhirov | Free Imp. Arc Thrower | -4/Zhirov | Free Imp. System Restoration Module | -3/Research | Scanalyzed EM Dispersion Field | -3/Research | Hacked Imp. Particle Accelerator | -3/Research | Hacked Hdn. Centrium Wheel | -3/Research | Hacked Beam Splitter | -3/Research | Hacked Adv. Hardlight Generator | -3/Armory | Hacked Exp. Shock Absorption System | -3/Armory | Hacked Adv. Particle Accelerator | -3/Armory | Hacked Enh. Nova Cannon | -3/Armory | Hacked Singularity Reactor | -3/Armory | Hacked Robot Schematics ------------------ O-16 Technician | -10/Materials | Hacked M-13 Machinist | -10/Materials | Hacked O-24 Administrator | -8/Materials | Hacked M-28 Smith | -8/Materials | Hacked B-36 Bruiser | -8/Storage | Hacked D-53 Grenadier | -8/Storage | Hacked S-27 Virus | -7/Data Miner | Free G-50 Soldier | -7/Data Miner | Free H-66 Slayer | -7/Data Miner | Free P-70 Sage | -7/Data Miner | Free I-36 Angel | -7/Data Miner | Free O-32 Director | -4/Factory | Hacked Fabricated ------------ Hvy. Reactive Plating | x1 | -7/Factory Lrn. Terrain Scanner | x1 | -7/Factory Imp. Particle Charger | x2 | -7/Factory Imp. System Backup Module | x2 | -7/Factory Imp. System Shield | x1 | -7/Factory M-28 Smith | x1 | -7/Factory Imp. System Shield | x1 | -7/Factory Imp. Hacking Suite | x1 | -7/Factory M-28 Smith | x1 | -7/Factory M-28 Smith | x1 | -7/Factory Exp. Terrain Scanner | x1 | -6/Factory Imp. Coolant Injector | x2 | -6/Factory Exp. Terrain Scanner | x1 | -5/Factory Prc. Energy Filter | x1 | -5/Factory Exp. Signal Interpreter | x1 | -4/Factory Centrium Wheel | x2 | -4/Factory Exp. Coolant Injector | x1 | -4/Factory O-24 Administrator | x1 | -4/Factory M-28 Smith | x1 | -4/Factory EM Dispersion Field | x1 | -3/Research Beam Splitter | x1 | -3/Research Hdn. Centrium Wheel | x1 | -3/Armory Exp. Shock Absorption System | x1 | -3/Armory Imp. Particle Accelerator | x1 | -3/Armory Adv. Hardlight Generator | x2 | -3/Armory Hdn. Centrium Wheel | x1 | -3/Armory O-32 Director | x1 | -3/Armory O-32 Director | x1 | -3/Armory O-32 Director | x1 | -3/Armory Adv. Particle Accelerator | x1 | -3/Armory Singularity Reactor | x1 | -1/Access Alien Tech Used ----------------- Dimensional Node Initializer Transdimensional Reconstructor Integrated Reactor Core Expander Achievements -------------- All-out Warlord Z1$+NX3F=JRE3_ZNQR Challenges ------------ None RPGLIKE | -11 -10 -10 -9 -9 -8 -8 -7 -7 -7 -7 -7 -7 -6 -6 -6 -6 -6 -6 -5 -5 -5 -5 -5 -4 -4 -4 -4 -4 -3 -3 -3 -3 -2 -1 -1 --------- Run | Scr Mat Min Mat Min Mat Sto Fac Was Fac Low Low Dat Pro Fac Low Low Zio Dee Pro Fac Upp Upp War Pro Fac Upp Upp Zhi Pro Res Arm Lab Res Acc Com Levels Raised 38 | . 1 1 6 . 5 1 3 . 1 . . . 1 1 . . . . 1 2 . . 3 1 1 . . . . 2 1 . 1 2 4 XP Earned 63950 | 6000 2425 1650 8076 709 7019 1176 4870 32 1240 111 210 73 1168 1920 160 164 82 249 1532 2434 231 153 4350 589 1452 74 108 50 561 2821 1526 368 1424 3180 5763 XP Spent 62885 | 3020 4140 1400 1700 1400 10950 1000 6350 . 500 . . . . 5230 . . . 250 . 1500 . . 5500 . 4725 . . . . . 4650 . 800 1200 8570 Upgrades 85 | 7 9 1 1 1 10 1 7 . 1 . . . . 5 . . . 1 . 1 . . 2 . 15 . . . . . 2 . 1 4 16 Power Slot 2 | . . . . . 1 . . . . . . . . . . . . . . . . . . . . . . . . . . . 1 . . Propulsion Slot 1 | . . . . . . . . . 1 . . . . . . . . . . . . . . . . . . . . . . . . . . Utility Slot 13 | 2 1 1 1 . 4 . 1 . . . . . . 1 . . . . . . . . 1 . . . . . . . 1 . . . . Weapon Slot 5 | 2 1 . . 1 . . . . . . . . . . . . . . . . . . 1 . . . . . . . . . . . . Heat Dissipation 29 | 2 . . . . 5 . 2 . . . . . . 1 . . . 1 . . . . . . . . . . . . . . . 4 14 Energy Generation 4 | 1 . . . . . . . . . . . . . . . . . . . . . . . . . . . . . . 1 . . . 2 Inventory Capacity 7 | . 3 . . . . 1 1 . . . . . . . . . . . . 1 . . . . 1 . . . . . . . . . . Sensor Range 14 | . . . . . . . . . . . . . . . . . . . . . . . . . 14 . . . . . . . . . . Terrain Scan Density 4 | . 4 . . . . . . . . . . . . . . . . . . . . . . . . . . . . . . . . . . Hack Attack % 1 | . . . . . . . . . . . . . . 1 . . . . . . . . . . . . . . . . . . . . . Hack Defense % 1 | . . . . . . . . . . . . . . 1 . . . . . . . . . . . . . . . . . . . . . TH Damage % 4 | . . . . . . . 3 . . . . . . 1 . . . . . . . . . . . . . . . . . . . . . Protomatter Created 37039 | . 271 299 515 258 1435 270 1301 194 856 89 156 . 205 658 40 74 . 231 578 866 38 . 10090 505 1509 104 109 . 104 2502 2250 53 202 1970 9307 Integrity Restored 25655 | . 232 569 485 73 1515 168 1434 425 805 253 238 . 454 534 110 129 . 686 1539 1049 36 . 5377 1116 2083 182 95 . 154 2228 260 25 165 777 2459 Core 13403 | . 163 432 376 50 1154 99 751 131 436 101 127 . 182 183 56 32 . 618 421 453 11 . 3077 409 699 78 51 . 84 1124 126 . 165 381 1433 Parts 12252 | . 69 137 109 23 361 69 683 294 369 152 111 . 272 351 54 97 . 68 1118 596 25 . 2300 707 1384 104 44 . 70 1104 134 25 . 396 1026 Protomatter Decayed 22622 | . 185 119 545 267 784 350 1141 50 615 . 71 . 296 839 . 85 . . 141 597 24 . 2431 . 611 39 . . 87 647 2215 100 2694 2062 5627 Game ------ Seed FieldNodeSplitter Manual? 1 Play Time 11:33:33 Cumulative 484.7 hours Start 2020.05.17 @ 21:53:24 End 2020.05.21 @ 22:50:53 Sessions 9 Manual Loads 0 Difficulty Explorer Special Mode Winter2019/RPGLIKE Game No. 51 Rogue 1 Adventurer 3 Explorer 47 Win Type 1 Total 26 Types 20/3/2/1/0/0/0 Lore% 72 Gallery% 91 Achievement% 91 Wizard Run 0 Options --------- ASCII 0 Keyboard 1 Movement Vi Keybinds 1 Fullscreen 2 Font 24/Terminus Map View 76x50 Tactical HUD 1 Map Filters NONE Filters NONE Steam 1 RUN: ca91b5c4-ce71-4a9b-8cce-91f22fc28245